{"text_format":"1","workbook":"xlsx","n_sheets":3,"sheets":["คำอธิบาย","ITA-o12","ITA-o12 (2)"],"not_rendered":{"charts":0,"images":0,"macros":1,"external_links":0,"defined_names":0,"comments":0,"pivot_tables":0},"unopened":[],"bounds":{"document_bytes":16777216,"sheet_cells":100000,"rows_first":2000,"rows_last":500,"rows_between":2000,"halvings":0,"cell_chars":16384,"cell_head_chars":4096},"cells_cut":0,"cells_raw":0,"read":"whole","date_system":"1900"}

{"sheet":"คำอธิบาย","index":0,"n_rows":34,"n_cols":4,"rows_kept":34,"cut":false,"hidden":true,"merged":[[16,3,22,3]]}
["คำอธิบายการกรอกข้อมูลในแบบวัดการเปิดเผยข้อมูลสาธารณะ (Open Data Integrity & Transparency Assessment: OIT) ข้อ o12 (แบบฟอร์ม ITA-o12)"]
[]
[]
[]
[]
[]
[]
[]
[]
[]
[]
[]
[]
[]
[]
["คอลัมน์","ข้อมูลที่เกี่ยวข้องกับหน่วยงาน","คำอธิบายการกรอกข้อมูล","หมายเหตุ"]
["A","ที่","ลำดับรายการ","เป็นข้อมูลที่เพิ่มเติมจากองค์ประกอบด้านข้อมูลที่กำหนด เพี่อให้ข้อมูลมีความครบถ้วนสมบูรณ์สำหรับการนำไปใช้ประโยชน์ต่อ ดังนั้น หน่วยงานสามารถเว้นว่างข้อมูลที่เกี่ยวข้องกับหน่วยงานได้ เนื่องจากไม่ได้กำหนดในองค์ประกอบด้านข้อมูลที่ปรากฏในคู่มือการประเมินคุณธรรมและความโปร่งใสในการดำเนินงานของหน่วยงานภาครัฐ ประจำปีงบประมาณ พ.ศ. 2568 โดยไม่กระทบต่อการพิจารณาให้คะแนนในข้อ o-13"]
["B","ปีงบประมาณ","รอบปีงบประมาณที่หน่วยงานใช้ในการบริหารราชการในการประเมินรอบนั้น ๆ คือ 2568"]
["C","ชื่อหน่วยงาน","ชื่อหน่วยงานที่เป็นสถานะนิติบุคคล ไม่ใช่ส่วนราชการย่อยภายในหน่วยงาน"]
["D","อำเภอ ","1. หน่วยงานประเภทองค์กรปกครองส่วนท้องถิ่น (ไม่รวมถึงองค์กรปกครองส่วนท้องถิ่นรูปแบบพิเศษ) ให้ระบุข้อมูลอำเภอตามที่ตั้งของหน่วยงาน\n2. หน่วยงานประเภทกรมหรือเทียบเท่า กองทุน รัฐวิสาหกิจ องค์การมหาชน หน่วยงานของรัฐอื่น ๆ สถาบันอุดมศึกษา หน่วยงานของรัฐสภา หน่วยงานของศาล หน่วยงานขององค์กรอิสระตามรัฐธรรมนูญ จังหวัด และองค์กรปกครองส่วนท้องถิ่นรูปแบบพิเศษ ให้เว้นว่างไว้"]
["E","จังหวัด","1. หน่วยงานประเภทองค์กรปกครองส่วนท้องถิ่น (ไม่รวมถึงองค์กรปกครองส่วนท้องถิ่นรูปแบบพิเศษ) ระบุข้อมูลจังหวัดตามที่ตั้งของหน่วยงาน\n2. หน่วยงานประเภทกรมหรือเทียบเท่า กองทุน รัฐวิสาหกิจ องค์การมหาชน หน่วยงานของรัฐอื่น ๆ สถาบันอุดมศึกษา หน่วยงานของรัฐสภา หน่วยงานของศาล หน่วยงานขององค์กรอิสระตามรัฐธรรมนูญ จังหวัด และองค์กรปกครองส่วนท้องถิ่นรูปแบบพิเศษ ให้เว้นว่างไว้"]
["F","กระทรวง","1. หน่วยงานประเภทองค์กรปกครองส่วนท้องถิ่น (รวมถึงองค์กรปกครองส่วนท้องถิ่นรูปแบบพิเศษ) สถาบันอุดมศึกษา หน่วยงานของรัฐสภา หน่วยงานของศาล หน่วยงานขององค์กรอิสระตามรัฐธรรมนูญ และจังหวัด ให้เว้นว่างไว้\n2. หน่วยงานประเภทกรมหรือเทียบเท่า กองทุน รัฐวิสาหกิจ องค์การมหาชน และหน่วยงานของรัฐอื่น ๆ ให้ระบุสังกัดกระทรวงของหน่วยงาน  "]
["G","ประเภทหน่วยงาน","ประเภทหน่วยงาน ประกอบด้วย หน่วยงานระดับกรมหรือเทียบเท่า กองทุน รัฐวิสาหกิจ องค์การมหาชน หน่วยงานของรัฐอื่น ๆ สถาบันอุดมศึกษา หน่วยงานของรัฐสภา หน่วยงานของศาล หน่วยงานขององค์กรอิสระตามรัฐธรรมนูญ จังหวัด องค์กรปกครองส่วนท้องถิ่นรูปแบบพิเศษ องค์การบริหารส่วนจังหวัด เทศบาลนคร เทศบาลนคร เทศบาลเมือง เทศบาลตำบล และองค์การบริหารส่วนตำบล"]
[]
["คอลัมน์","องค์ประกอบด้านข้อมูล","คำอธิบายการกรอกข้อมูล"]
["H","ชื่อรายการของงานที่ซื้อหรือจ้าง","ชื่อรายการจัดซื้อจัดจ้าง"]
["I","วงเงินงบประมาณที่ได้รับจัดสรร (บาท)","เงินงบประมาณที่หน่วยงานได้รับสำหรับการจัดซื้อจัดจ้างของรายการนั้น ๆ "]
["J","แหล่งที่มาของงบประมาณ ","ที่มาของการจัดสรรงบประมาณสำหรับการจัดซื้อจัดจ้าง เช่น พ.ร.บ. งบประมาณรายจ่ายประจำปี, เงินรายได้"]
["K","สถานะการจัดซื้อจัดจ้าง","สถานะการจัดซื้อจัดจ้าง ประกอบด้วย ยังไม่ลงนามในสัญญา อยู่ระหว่างระยะสัญญา สิ้นสุดสัญญาแล้ว และยกเลิกการดำเนินการ"]
["L","วิธีการจัดซื้อจัดจ้าง","วิธีการที่ดำเนินการจัดซื้อจัดจ้ดจ้าง ได้แก่ วิธีประกาศเชิญชวนทั่วไป วิธีคัดเลือก วิธีเฉพาะเจาะจง วิธีประกวดแบบ หรือ อื่น ๆ "]
["M","ราคากลาง (บาท)","ราคาเพื่อใช้เป็นฐานสำหรับเปรียบเทียบราคาที่ผู้ยื่นข้อเสนอได้ยื่น เสนอไว้ซึ่งสามารถจัดซื้อจัดจ้างได้จริง\nหมายเหตุ: กรณีสถานะของการจัดซื้อจัดจ้าง เป็น ยังไม่ลงนามในสัญญาหรือยกเลิกการดำเนินการ สามารถเว้นว่างไว้ได้"]
["N","ราคาที่ตกลงซื้อหรือจ้าง (บาท)","ราคาที่ใช้สำหรับการจัดซื้อจัดจ้าง\nหมายเหตุ: กรณีสถานะของการจัดซื้อจัดจ้าง เป็น ยังไม่ลงนามในสัญญาหรือยกเลิกการดำเนินการ สามารถเว้นว่างไว้ได้"]
["O","รายชื่อผู้ประกอบการที่ได้รับการคัดเลือก","ผู้ประกอบการที่ได้รับการคัดเลือกให้มาเป็นผู้ดำเนินการ\nหมายเหตุ: กรณีสถานะของการจัดซื้อจัดจ้าง เป็น ยังไม่ลงนามในสัญญาหรือยกเลิกการดำเนินการ สามารถเว้นว่างไว้ได้"]
["P","เลขที่โครงการในระบบ e-GP","เลขที่โครงการของรายการจัดซื้อจัดจ้างนั้น ๆ ที่ปรากฏในระบบ e-GP\nหมายเหตุ: \n1. กรณีการจัดซื้อจัดจ้างที่ไม่ต้องดำเนินการระบบ e-GP ตามหนังสือกรมบัญชีกลาง ด่วนที่สุดที่ กค 0405.4/ว 322 ลงวันที่ 24 สิงหาคม 2560 ให้แสดงให้เห็นว่าไม่มีเลขที่โครงการในระบบ e-GP พร้อมเหตุผลประกอบ โดยไม่มีการเว้นว่างข้อมูลไว้\n2. กรณีสถานะของการจัดซื้อจัดจ้าง เป็น ยังไม่ลงนามในสัญญาหรือยกเลิกการดำเนินการ สามารถเว้นว่างไว้ได้"]

{"sheet":"ITA-o12","index":1,"n_rows":101,"n_cols":16,"rows_kept":101,"cut":false,"hidden":true,"merged":[]}
["ที่","ปีงบประมาณ","ชื่อหน่วยงาน","อำเภอ ","จังหวัด","กระทรวง","ประเภทหน่วยงาน","ชื่อรายการของงานที่ซื้อหรือจ้าง","วงเงินงบประมาณที่ได้รับจัดสรร (บาท)","แหล่งที่มาของงบประมาณ ","สถานะการจัดซื้อจัดจ้าง","วิธีการจัดซื้อจัดจ้าง","ราคากลาง (บาท)","ราคาที่ตกลงซื้อหรือจ้าง (บาท)","รายชื่อผู้ประกอบการที่ได้รับการคัดเลือก","เลขที่โครงการในระบบ e-GP"]
[1,2568,"องค์การบริหารส่วนตำบลกู่กาสิงห์","เกษตรวิสัย","ร้อยเอ็ด","มหาดไทย","องค์กรปกครองส่วนท้องถิ่น","โครงการก่อสร้างถนนคอนกรีตเสริมเหล็ก หมู๋ที่ 11 (บ้านนางอ่อนจันทร์)",500000,"เงินกู้","สิ้นสุดระยะสัญญา","วิธีเฉพาะเจาะจง",499558.36,499000,"ห้างหุ้นส่วนจำกัด ศ.เจริญชัยวัสดุ","67069355140"]
[2,2568,"องค์การบริหารส่วนตำบลกู่กาสิงห์","เกษตรวิสัย","ร้อยเอ็ด","มหาดไทย","องค์กรปกครองส่วนท้องถิ่น","โครงการก่อสร้างถนนคอนกรีตเสริมเหล็ก หมู๋ที่ 11 (เส้นรอบวัดไตรตรึงษ์)",500000,"เงินกู้","สิ้นสุดระยะสัญญา","วิธีเฉพาะเจาะจง",499558.36,499000,"ห้างหุ้นส่วนจำกัด ศ.เจริญชัยวัสดุ","67069356642"]
[3,2568,"องค์การบริหารส่วนตำบลกู่กาสิงห์","เกษตรวิสัย","ร้อยเอ็ด","มหาดไทย","องค์กรปกครองส่วนท้องถิ่น","โครงการจ้างติดตั้งม่านพลาสติกห้องประชุม ฯ",23000,"ข้อบัญญัติงบประมาณประจำปี 2568","สิ้นสุดระยะสัญญา","วิธีเฉพาะเจาะจง",23000,23000,"ร้าน ส.สวัสดีผ้าม่าน","67109398805"]
[4,2568,"องค์การบริหารส่วนตำบลกู่กาสิงห์","เกษตรวิสัย","ร้อยเอ็ด","มหาดไทย","องค์กรปกครองส่วนท้องถิ่น","โครงการจัดซื้อวัสดุก่อสร้าง ",4900,"ข้อบัญญัติงบประมาณประจำปี 2568","สิ้นสุดระยะสัญญา","วิธีเฉพาะเจาะจง",4900,4900,"ห้างหุ้นส่วนจำกัดเที่ยงตรงวิทยุ","67109076573"]
[5,2568,"องค์การบริหารส่วนตำบลกู่กาสิงห์","เกษตรวิสัย","ร้อยเอ็ด","มหาดไทย","องค์กรปกครองส่วนท้องถิ่น","โครงการจัดซื้อวัสดุคอมพิวเตอร์",800,"ข้อบัญญัติงบประมาณประจำปี 2568","สิ้นสุดระยะสัญญา","วิธีเฉพาะเจาะจง",800,800,"ห้างหุ้นส่วนจำกัดมงคลชัยวิทยาภัณฑ์","67109234503"]
[6,2568,"องค์การบริหารส่วนตำบลกู่กาสิงห์","เกษตรวิสัย","ร้อยเอ็ด","มหาดไทย","องค์กรปกครองส่วนท้องถิ่น","โครงการจัดซื้อวัสดุก่อสร้าง ",36785,"ข้อบัญญัติงบประมาณประจำปี 2568","สิ้นสุดระยะสัญญา","วิธีเฉพาะเจาะจง",36785,36785,"ร้านพงศ์เจริญ","67109399781"]
[7,2568,"องค์การบริหารส่วนตำบลกู่กาสิงห์","เกษตรวิสัย","ร้อยเอ็ด","มหาดไทย","องค์กรปกครองส่วนท้องถิ่น","โครงการจัดซื้อมาตรวัดน้ำประปาหมู่บ้าน",19250,"ข้อบัญญัติงบประมาณประจำปี 2568","สิ้นสุดระยะสัญญา","วิธีเฉพาะเจาะจง",19250,19250,"ห้างหุ้นส่วนจำกัดเที่ยงตรงวิทยุ","67109270695"]
[8,2568,"องค์การบริหารส่วนตำบลกู่กาสิงห์","เกษตรวิสัย","ร้อยเอ็ด","มหาดไทย","องค์กรปกครองส่วนท้องถิ่น","โครงการจัดซื้อปั้มน้ำชนิดจุ่ม (ซัมเมอร์ส ขนาด 1.5 แรง)",24500,"ข้อบัญญัติงบประมาณประจำปี 2568","สิ้นสุดระยะสัญญา","วิธีเฉพาะเจาะจง",24500,24500,"ห้างหุ้นส่วนจำกัดเที่ยงตรงวิทยุ","67109428815"]
[9,2568,"องค์การบริหารส่วนตำบลกู่กาสิงห์","เกษตรวิสัย","ร้อยเอ็ด","มหาดไทย","องค์กรปกครองส่วนท้องถิ่น","โครงการจัดซื้อว้สดุคอมพิวเตอร์",2000,"ข้อบัญญัติงบประมาณประจำปี 2568","สิ้นสุดระยะสัญญา","วิธีเฉพาะเจาะจง",2000,2000,"บริษัท แอดไวซ์เกษตร จำกัด","67109076500"]
[10,2568,"องค์การบริหารส่วนตำบลกู่กาสิงห์","เกษตรวิสัย","ร้อยเอ็ด","มหาดไทย","องค์กรปกครองส่วนท้องถิ่น","โครงการจ้างจัดซื้อหินคลุก",31680,"ข้อบัญญัติงบประมาณประจำปี 2568","สิ้นสุดระยะสัญญา","วิธีเฉพาะเจาะจง",31680,31680,"ร้านขวัญชัย โดย นายขวัญชัย สูงพล","67109440298"]
[11,2568,"องค์การบริหารส่วนตำบลกู่กาสิงห์","เกษตรวิสัย","ร้อยเอ็ด","มหาดไทย","องค์กรปกครองส่วนท้องถิ่น","โครงการจ้างซ่อมแซมถนนดิน หมู่ที่ 7,8,20 และ 12",83700,"ข้อบัญญัติงบประมาณประจำปี 2568","สิ้นสุดระยะสัญญา","วิธีเฉพาะเจาะจง",83700,83700,"ร้านสุพรรณเจริญยนต์","67119038962"]
[12,2568,"องค์การบริหารส่วนตำบลกู่กาสิงห์","เกษตรวิสัย","ร้อยเอ็ด","มหาดไทย","องค์กรปกครองส่วนท้องถิ่น","โครงการจัดซื้อวัสดุคอมพิวเตอร์",1470,"ข้อบัญญัติงบประมาณประจำปี 2568","สิ้นสุดระยะสัญญา","วิธีเฉพาะเจาะจง",{"$f":"+Table1[[#This Row],[วงเงินงบประมาณที่ได้รับจัดสรร (บาท)]]","v":1470},{"$f":"+Table1[[#This Row],[ราคากลาง (บาท)]]","v":1470},"บริษัท ทรัพย์กวีโอเอเซ็นเตอร์ จำกัด","67119077268"]
[13,2568,"องค์การบริหารส่วนตำบลกู่กาสิงห์","เกษตรวิสัย","ร้อยเอ็ด","มหาดไทย","องค์กรปกครองส่วนท้องถิ่น","โครงการจ้างพิมพ์ป้ายไวนิว ฯ",2300,"ข้อบัญญัติงบประมาณประจำปี 2568","สิ้นสุดระยะสัญญา","วิธีเฉพาะเจาะจง",{"$f":"+Table1[[#This Row],[วงเงินงบประมาณที่ได้รับจัดสรร (บาท)]]","v":2300},{"$f":"+Table1[[#This Row],[ราคากลาง (บาท)]]","v":2300},"ร้านเอ็กซิทอินเตอร์เนต","67119214440"]
[14,2568,"องค์การบริหารส่วนตำบลกู่กาสิงห์","เกษตรวิสัย","ร้อยเอ็ด","มหาดไทย","องค์กรปกครองส่วนท้องถิ่น","โครงการจัดซื้อวัสดุงานบ้านงานครัว",4020,"ข้อบัญญัติงบประมาณประจำปี 2568","สิ้นสุดระยะสัญญา","วิธีเฉพาะเจาะจง",{"$f":"+Table1[[#This Row],[วงเงินงบประมาณที่ได้รับจัดสรร (บาท)]]","v":4020},{"$f":"+Table1[[#This Row],[ราคากลาง (บาท)]]","v":4020},"ห้างหุ้นส่วนจำกัดมงคลชัยวิทยาภัณฑ์","67129089215"]
[15,2568,"องค์การบริหารส่วนตำบลกู่กาสิงห์","เกษตรวิสัย","ร้อยเอ็ด","มหาดไทย","องค์กรปกครองส่วนท้องถิ่น","โครงการจัดซื้ออาหารเสริมนม ชนิดกล่อง ขนาด 200 มล.",56170.17,"ข้อบัญญัติงบประมาณประจำปี 2568","สิ้นสุดระยะสัญญา","วิธีเฉพาะเจาะจง",{"$f":"+Table1[[#This Row],[วงเงินงบประมาณที่ได้รับจัดสรร (บาท)]]","v":56170.17},{"$f":"+Table1[[#This Row],[ราคากลาง (บาท)]]","v":56170.17},"สหกรณ์โคนมกำแพงแสนจำกัด","67119077768"]
[16,2568,"องค์การบริหารส่วนตำบลกู่กาสิงห์","เกษตรวิสัย","ร้อยเอ็ด","มหาดไทย","องค์กรปกครองส่วนท้องถิ่น","โครงการจ้างซ่อมแซมถนนลูกรัง",null,"ข้อบัญญัติงบประมาณประจำปี 2568","สิ้นสุดระยะสัญญา","วิธีเฉพาะเจาะจง",57100,{"$f":"+Table1[[#This Row],[ราคากลาง (บาท)]]","v":57100},"ร้านขวัญชัย โดย นายขวัญชัย สูงพล","67119104549"]
[17,2568,"องค์การบริหารส่วนตำบลกู่กาสิงห์","เกษตรวิสัย","ร้อยเอ็ด","มหาดไทย","องค์กรปกครองส่วนท้องถิ่น","โครงการซ่อมแซมถนนลงหินคลุก",95000,"ข้อบัญญัติงบประมาณประจำปี 2568","สิ้นสุดระยะสัญญา","วิธีเฉพาะเจาะจง",105700,95000,"ร้าน ช.วัสดุ","67119130476"]
[18,2568,"องค์การบริหารส่วนตำบลกู่กาสิงห์","เกษตรวิสัย","ร้อยเอ็ด","มหาดไทย","องค์กรปกครองส่วนท้องถิ่น","โครงการจัดซื้อวัสดุคอมพิวเตอร์",7850,"ข้อบัญญัติงบประมาณประจำปี 2568","สิ้นสุดระยะสัญญา","วิธีเฉพาะเจาะจง",{"$f":"+Table1[[#This Row],[วงเงินงบประมาณที่ได้รับจัดสรร (บาท)]]","v":7850},{"$f":"+Table1[[#This Row],[ราคากลาง (บาท)]]","v":7850},"บริษัท แอดไวซ์เกษตร จำกัด","67119077542"]
[19,2568,"องค์การบริหารส่วนตำบลกู่กาสิงห์","เกษตรวิสัย","ร้อยเอ็ด","มหาดไทย","องค์กรปกครองส่วนท้องถิ่น","โครงการจัดซื้อวัสดุสำนักงาน",5830,"ข้อบัญญัติงบประมาณประจำปี 2568","สิ้นสุดระยะสัญญา","วิธีเฉพาะเจาะจง",{"$f":"+Table1[[#This Row],[วงเงินงบประมาณที่ได้รับจัดสรร (บาท)]]","v":5830},{"$f":"+Table1[[#This Row],[ราคากลาง (บาท)]]","v":5830},"ห้างหุ้นส่วนจำกัดมงคลชัยวิทยาภัณฑ์","67119078063"]
[20,2568,"องค์การบริหารส่วนตำบลกู่กาสิงห์","เกษตรวิสัย","ร้อยเอ็ด","มหาดไทย","องค์กรปกครองส่วนท้องถิ่น","โครงการจัดซื้อธงประดับเสาไฟฟ้า",62100,"ข้อบัญญัติงบประมาณประจำปี 2568","สิ้นสุดระยะสัญญา","วิธีเฉพาะเจาะจง",{"$f":"+Table1[[#This Row],[วงเงินงบประมาณที่ได้รับจัดสรร (บาท)]]","v":62100},{"$f":"+Table1[[#This Row],[ราคากลาง (บาท)]]","v":62100},"ร้านบีบีเคมีคอล","67119104424"]
[21,2568,"องค์การบริหารส่วนตำบลกู่กาสิงห์","เกษตรวิสัย","ร้อยเอ็ด","มหาดไทย","องค์กรปกครองส่วนท้องถิ่น","โครงการจัดซื้อวัสดุสำนักงานและวัสดุงานบ้านงานครัว",11280,"ข้อบัญญัติงบประมาณประจำปี 2568","สิ้นสุดระยะสัญญา","วิธีเฉพาะเจาะจง",{"$f":"+Table1[[#This Row],[วงเงินงบประมาณที่ได้รับจัดสรร (บาท)]]","v":11280},{"$f":"+Table1[[#This Row],[ราคากลาง (บาท)]]","v":11280},"ห้างหุ้นส่วนจำกัดมงคลชัยวิทยาภัณฑ์","67119078109"]
[22,2568,"องค์การบริหารส่วนตำบลกู่กาสิงห์","เกษตรวิสัย","ร้อยเอ็ด","มหาดไทย","องค์กรปกครองส่วนท้องถิ่น","โครงการจัดซื้อวัสดุงานบ้านงานครัว",3480,"ข้อบัญญัติงบประมาณประจำปี 2568","สิ้นสุดระยะสัญญา","วิธีเฉพาะเจาะจง",{"$f":"+Table1[[#This Row],[วงเงินงบประมาณที่ได้รับจัดสรร (บาท)]]","v":3480},{"$f":"+Table1[[#This Row],[ราคากลาง (บาท)]]","v":3480},"ห้างหุ้นส่วนจำกัดมงคลชัยวิทยาภัณฑ์","67119078142"]
[23,2568,"องค์การบริหารส่วนตำบลกู่กาสิงห์","เกษตรวิสัย","ร้อยเอ็ด","มหาดไทย","องค์กรปกครองส่วนท้องถิ่น","โครงการจ้างเหมาบริการเพื่อปฏิบัติงานประจำรถบรรทุกน้ำ",45000,"ข้อบัญญัติงบประมาณประจำปี 2568","สิ้นสุดระยะสัญญา","วิธีเฉพาะเจาะจง",{"$f":"+Table1[[#This Row],[วงเงินงบประมาณที่ได้รับจัดสรร (บาท)]]","v":45000},{"$f":"+Table1[[#This Row],[ราคากลาง (บาท)]]","v":45000},"นายพนม กองดวงจันทร์","จ้างบุคคลธรรมดาตามหนังสือกรมบัญชีกลาง ด่วนที่สุดที่ กค 0405.4/ว 322 ลงวันที่ 24 สิงหาคม 2560 ให้แสดงให้เห็นว่าไม่มีเลขที่โครงการในระบบ e-GP"]
[24,2568,"องค์การบริหารส่วนตำบลกู่กาสิงห์","เกษตรวิสัย","ร้อยเอ็ด","มหาดไทย","องค์กรปกครองส่วนท้องถิ่น","โครงการจ้างเหมาบริการเพื่อปฏิบัติงานประจำรถบรรทุกน้ำ",45000,"ข้อบัญญัติงบประมาณประจำปี 2568","สิ้นสุดระยะสัญญา","วิธีเฉพาะเจาะจง",{"$f":"+Table1[[#This Row],[วงเงินงบประมาณที่ได้รับจัดสรร (บาท)]]","v":45000},{"$f":"+Table1[[#This Row],[ราคากลาง (บาท)]]","v":45000},"นายอดิศักดิ์ นามเขตต์","จ้างบุคคลธรรมดาตามหนังสือกรมบัญชีกลาง ด่วนที่สุดที่ กค 0405.4/ว 322 ลงวันที่ 24 สิงหาคม 2560 ให้แสดงให้เห็นว่าไม่มีเลขที่โครงการในระบบ e-GP"]
[25,2568,"องค์การบริหารส่วนตำบลกู่กาสิงห์","เกษตรวิสัย","ร้อยเอ็ด","มหาดไทย","องค์กรปกครองส่วนท้องถิ่น","โครงการจ้างเหมาปรับเกรดถนนดินในพื้นที่หมู่ที่ 1,2,3,4 และ 9",49000,"ข้อบัญญัติงบประมาณประจำปี 2568","สิ้นสุดระยะสัญญา","วิธีเฉพาะเจาะจง",{"$f":"+Table1[[#This Row],[วงเงินงบประมาณที่ได้รับจัดสรร (บาท)]]","v":49000},{"$f":"+Table1[[#This Row],[ราคากลาง (บาท)]]","v":49000},"ร้านขวัญชัย โดย นายขวัญชัย สูงพล","67119350475"]
[26,2568,"องค์การบริหารส่วนตำบลกู่กาสิงห์","เกษตรวิสัย","ร้อยเอ็ด","มหาดไทย","องค์กรปกครองส่วนท้องถิ่น","โครงการจ้างเหมาปรับเกรดถนนดินในพื้นที่หมู่ที่ 5,6,7,8,10 และ 11",49000,"ข้อบัญญัติงบประมาณประจำปี 2568","สิ้นสุดระยะสัญญา","วิธีเฉพาะเจาะจง",{"$f":"+Table1[[#This Row],[วงเงินงบประมาณที่ได้รับจัดสรร (บาท)]]","v":49000},{"$f":"+Table1[[#This Row],[ราคากลาง (บาท)]]","v":49000},"ร้านสุพรรณเจริญยนต์","61779356888"]
[27,2568,"องค์การบริหารส่วนตำบลกู่กาสิงห์","เกษตรวิสัย","ร้อยเอ็ด","มหาดไทย","องค์กรปกครองส่วนท้องถิ่น","โครงการจัดซื้อน้ำดื่ม",1400,"ข้อบัญญัติงบประมาณประจำปี 2568","สิ้นสุดระยะสัญญา","วิธีเฉพาะเจาะจง",{"$f":"+Table1[[#This Row],[วงเงินงบประมาณที่ได้รับจัดสรร (บาท)]]","v":1400},{"$f":"+Table1[[#This Row],[ราคากลาง (บาท)]]","v":1400},"นายนรินท์ ศรีนนท์","671193ฃ6826"]
[28,2568,"องค์การบริหารส่วนตำบลกู่กาสิงห์","เกษตรวิสัย","ร้อยเอ็ด","มหาดไทย","องค์กรปกครองส่วนท้องถิ่น","โครงการจัดซื้อวัสดุทางวิทยาศาสตร์",99300,"ข้อบัญญัติงบประมาณประจำปี 2568","สิ้นสุดระยะสัญญา","วิธีเฉพาะเจาะจง",{"$f":"+Table1[[#This Row],[วงเงินงบประมาณที่ได้รับจัดสรร (บาท)]]","v":99300},{"$f":"+Table1[[#This Row],[ราคากลาง (บาท)]]","v":99300},"ร้านค้ำคูณบุญกาพิมพ์","67119360395"]
[29,2568,"องค์การบริหารส่วนตำบลกู่กาสิงห์","เกษตรวิสัย","ร้อยเอ็ด","มหาดไทย","องค์กรปกครองส่วนท้องถิ่น","โครงการก่อสร้างถนนคอนกรีตเสริมเหล็ก หมู่ที่ 12 (เส้นโรงสี ฯ)",500000,"เงินกู้","สิ้นสุดระยะสัญญา","วิธีเฉพาะเจาะจง",{"$f":"+Table1[[#This Row],[วงเงินงบประมาณที่ได้รับจัดสรร (บาท)]]","v":500000},499000,"ห้างหุ้นส่วนจำกัดไผ่ทองวิศวกรรม","67069356642"]
[30,2568,"องค์การบริหารส่วนตำบลกู่กาสิงห์","เกษตรวิสัย","ร้อยเอ็ด","มหาดไทย","องค์กรปกครองส่วนท้องถิ่น","โครงการก่อสร้างถนนคอนกรีตเสริมเหล็ก หมู่ที่ 12 (เส้นบ้านผู้ช่วยปราณี ฯ)",500000,"เงินกู้","สิ้นสุดระยะสัญญา","วิธีเฉพาะเจาะจง",{"$f":"+Table1[[#This Row],[วงเงินงบประมาณที่ได้รับจัดสรร (บาท)]]","v":500000},499000,"ห้างหุ้นส่วนจำกัดไผ่ทองวิศวกรรม","67096357047"]
[31,2568,"องค์การบริหารส่วนตำบลกู่กาสิงห์","เกษตรวิสัย","ร้อยเอ็ด","มหาดไทย","องค์กรปกครองส่วนท้องถิ่น","โครงการจัดซื้อครุภัณฑ์คอมพิวเตอร์",27000,"ข้อบัญญัติงบประมาณประจำปี 2568","สิ้นสุดระยะสัญญา","วิธีเฉพาะเจาะจง",{"$f":"+Table1[[#This Row],[วงเงินงบประมาณที่ได้รับจัดสรร (บาท)]]","v":27000},{"$f":"+Table1[[#This Row],[ราคากลาง (บาท)]]","v":27000},"บริษัท แอดไวซ์เกษตร จำกัด","67119360853"]
[32,2568,"องค์การบริหารส่วนตำบลกู่กาสิงห์","เกษตรวิสัย","ร้อยเอ็ด","มหาดไทย","องค์กรปกครองส่วนท้องถิ่น","โครงการจัดซื้อครุภัณฑ์คอมพิวเตอร์",19000,"ข้อบัญญัติงบประมาณประจำปี 2568","สิ้นสุดระยะสัญญา","วิธีเฉพาะเจาะจง",{"$f":"+Table1[[#This Row],[วงเงินงบประมาณที่ได้รับจัดสรร (บาท)]]","v":19000},{"$f":"+Table1[[#This Row],[ราคากลาง (บาท)]]","v":19000},"บริษัท แอดไวซ์เกษตร จำกัด","67119077391"]
[33,2568,"องค์การบริหารส่วนตำบลกู่กาสิงห์","เกษตรวิสัย","ร้อยเอ็ด","มหาดไทย","องค์กรปกครองส่วนท้องถิ่น","โครงการจัดซื้อวัสดุก่อสร้าง ",14750,"ข้อบัญญัติงบประมาณประจำปี 2568","สิ้นสุดระยะสัญญา","วิธีเฉพาะเจาะจง",{"$f":"+Table1[[#This Row],[วงเงินงบประมาณที่ได้รับจัดสรร (บาท)]]","v":14750},{"$f":"+Table1[[#This Row],[ราคากลาง (บาท)]]","v":14750},"ห้างหุ้นส่วนจำกัดเที่ยงตรงวิทยุ","67119214824"]
[34,2568,"องค์การบริหารส่วนตำบลกู่กาสิงห์","เกษตรวิสัย","ร้อยเอ็ด","มหาดไทย","องค์กรปกครองส่วนท้องถิ่น","โครงการจัดซื้อวัสดุคอมพิวเตอร์",1100,"ข้อบัญญัติงบประมาณประจำปี 2568","สิ้นสุดระยะสัญญา","วิธีเฉพาะเจาะจง",{"$f":"+Table1[[#This Row],[วงเงินงบประมาณที่ได้รับจัดสรร (บาท)]]","v":1100},{"$f":"+Table1[[#This Row],[ราคากลาง (บาท)]]","v":1100},"บริษัท แอดไวซ์เกษตร จำกัด","67119565898"]
[35,2568,"องค์การบริหารส่วนตำบลกู่กาสิงห์","เกษตรวิสัย","ร้อยเอ็ด","มหาดไทย","องค์กรปกครองส่วนท้องถิ่น","โครงการจัดซื้อวัสดุคอมพิวเตอร์",2940,"ข้อบัญญัติงบประมาณประจำปี 2568","สิ้นสุดระยะสัญญา","วิธีเฉพาะเจาะจง",{"$f":"+Table1[[#This Row],[วงเงินงบประมาณที่ได้รับจัดสรร (บาท)]]","v":2940},{"$f":"+Table1[[#This Row],[ราคากลาง (บาท)]]","v":2940},"บริษัท ทรัพย์กวีโอเอเซ็นเตอร์ จำกัด","67119565898"]
[36,2568,"องค์การบริหารส่วนตำบลกู่กาสิงห์","เกษตรวิสัย","ร้อยเอ็ด","มหาดไทย","องค์กรปกครองส่วนท้องถิ่น","โครงการจัดซื้อวัสดุงานบ้านงานครัว",4040,"ข้อบัญญัติงบประมาณประจำปี 2568","สิ้นสุดระยะสัญญา","วิธีเฉพาะเจาะจง",{"$f":"+Table1[[#This Row],[วงเงินงบประมาณที่ได้รับจัดสรร (บาท)]]","v":4040},{"$f":"+Table1[[#This Row],[ราคากลาง (บาท)]]","v":4040},"ห้างหุ้นส่วนจำกัดมงคลชัยวิทยาภัณฑ์","67119565898"]
[37,2568,"องค์การบริหารส่วนตำบลกู่กาสิงห์","เกษตรวิสัย","ร้อยเอ็ด","มหาดไทย","องค์กรปกครองส่วนท้องถิ่น","โครงการจ้างเหมาบริการเพื่อปฏิบัติงานซ่อมแซมระบบประปาและไฟฟ้าหมู่บ้าน",36000,"ข้อบัญญัติงบประมาณประจำปี 2568","สิ้นสุดระยะสัญญา","วิธีเฉพาะเจาะจง",{"$f":"+Table1[[#This Row],[วงเงินงบประมาณที่ได้รับจัดสรร (บาท)]]","v":36000},{"$f":"+Table1[[#This Row],[ราคากลาง (บาท)]]","v":36000},"นายกฤษฎา สิงห์กาละ","จ้างบุคคลธรรมดาตามหนังสือกรมบัญชีกลาง ด่วนที่สุดที่ กค 0405.4/ว 322 ลงวันที่ 24 สิงหาคม 2560 ให้แสดงให้เห็นว่าไม่มีเลขที่โครงการในระบบ e-GP"]
[38,2568,"องค์การบริหารส่วนตำบลกู่กาสิงห์","เกษตรวิสัย","ร้อยเอ็ด","มหาดไทย","องค์กรปกครองส่วนท้องถิ่น","โครงการจ้างเหมาบริการปรับปรุงบ่อทิ้งขยะ",72000,"ข้อบัญญัติงบประมาณประจำปี 2568","สิ้นสุดระยะสัญญา","วิธีเฉพาะเจาะจง",{"$f":"+Table1[[#This Row],[วงเงินงบประมาณที่ได้รับจัดสรร (บาท)]]","v":72000},{"$f":"+Table1[[#This Row],[ราคากลาง (บาท)]]","v":72000},"ร้านสุพรรณเจริญยนต์","67129057220"]
[39,2568,"องค์การบริหารส่วนตำบลกู่กาสิงห์","เกษตรวิสัย","ร้อยเอ็ด","มหาดไทย","องค์กรปกครองส่วนท้องถิ่น","โครงการจัดซื้อน้ำดื่ม",4950,"ข้อบัญญัติงบประมาณประจำปี 2568","สิ้นสุดระยะสัญญา","วิธีเฉพาะเจาะจง",{"$f":"+Table1[[#This Row],[วงเงินงบประมาณที่ได้รับจัดสรร (บาท)]]","v":4950},{"$f":"+Table1[[#This Row],[ราคากลาง (บาท)]]","v":4950},"ร้านธนากรช๊อป","67129089101"]
[40,2568,"องค์การบริหารส่วนตำบลกู่กาสิงห์","เกษตรวิสัย","ร้อยเอ็ด","มหาดไทย","องค์กรปกครองส่วนท้องถิ่น","โครงการจัดซื้อวัสดุสำนักงาน",180,"ข้อบัญญัติงบประมาณประจำปี 2568","สิ้นสุดระยะสัญญา","วิธีเฉพาะเจาะจง",{"$f":"+Table1[[#This Row],[วงเงินงบประมาณที่ได้รับจัดสรร (บาท)]]","v":180},{"$f":"+Table1[[#This Row],[ราคากลาง (บาท)]]","v":180},"ห้างหุ้นส่วนจำกัดมงคลชัยวิทยาภัณฑ์","67129089165"]
[41,2568,"องค์การบริหารส่วนตำบลกู่กาสิงห์","เกษตรวิสัย","ร้อยเอ็ด","มหาดไทย","องค์กรปกครองส่วนท้องถิ่น","โครงการจ้างซ่อมบำรุงรถกู้ชีพกู้ภัย ฯ",16450,"ข้อบัญญัติงบประมาณประจำปี 2568","สิ้นสุดระยะสัญญา","วิธีเฉพาะเจาะจง",{"$f":"+Table1[[#This Row],[วงเงินงบประมาณที่ได้รับจัดสรร (บาท)]]","v":16450},{"$f":"+Table1[[#This Row],[ราคากลาง (บาท)]]","v":16450},"ร้านยอดนิยม","67129089297"]
[42,2568,"องค์การบริหารส่วนตำบลกู่กาสิงห์","เกษตรวิสัย","ร้อยเอ็ด","มหาดไทย","องค์กรปกครองส่วนท้องถิ่น","โครงการจัดซื้อวัสดุสำนักงาน",11116,"ข้อบัญญัติงบประมาณประจำปี 2568","สิ้นสุดระยะสัญญา","วิธีเฉพาะเจาะจง",{"$f":"+Table1[[#This Row],[วงเงินงบประมาณที่ได้รับจัดสรร (บาท)]]","v":11116},{"$f":"+Table1[[#This Row],[ราคากลาง (บาท)]]","v":11116},"ห้างหุ้นส่วนจำกัดมงคลชัยวิทยาภัณฑ์","67129154628"]
[43,2568,"องค์การบริหารส่วนตำบลกู่กาสิงห์","เกษตรวิสัย","ร้อยเอ็ด","มหาดไทย","องค์กรปกครองส่วนท้องถิ่น","โครงการจัดซื้อวัสดุสำนักงาน",5280,"ข้อบัญญัติงบประมาณประจำปี 2568","สิ้นสุดระยะสัญญา","วิธีเฉพาะเจาะจง",{"$f":"+Table1[[#This Row],[วงเงินงบประมาณที่ได้รับจัดสรร (บาท)]]","v":5280},{"$f":"+Table1[[#This Row],[ราคากลาง (บาท)]]","v":5280},"บริษัท ทรัพย์กวีโอเอเซ็นเตอร์ จำกัด","67129154628"]
[44,2568,"องค์การบริหารส่วนตำบลกู่กาสิงห์","เกษตรวิสัย","ร้อยเอ็ด","มหาดไทย","องค์กรปกครองส่วนท้องถิ่น","โครงการจัดซื้อวัสดุสำนักงาน",9850,"ข้อบัญญัติงบประมาณประจำปี 2568","สิ้นสุดระยะสัญญา","วิธีเฉพาะเจาะจง",{"$f":"+Table1[[#This Row],[วงเงินงบประมาณที่ได้รับจัดสรร (บาท)]]","v":9850},{"$f":"+Table1[[#This Row],[ราคากลาง (บาท)]]","v":9850},"บริษัท แอดไวซ์เกษตร จำกัด","67129154628"]
[45,2568,"องค์การบริหารส่วนตำบลกู่กาสิงห์","เกษตรวิสัย","ร้อยเอ็ด","มหาดไทย","องค์กรปกครองส่วนท้องถิ่น","โครงการจัดซื้อครุภัณฑ์สำนักงาน",10000,"ข้อบัญญัติงบประมาณประจำปี 2568","สิ้นสุดระยะสัญญา","วิธีเฉพาะเจาะจง",{"$f":"+Table1[[#This Row],[วงเงินงบประมาณที่ได้รับจัดสรร (บาท)]]","v":10000},{"$f":"+Table1[[#This Row],[ราคากลาง (บาท)]]","v":10000},"ห้างหุ้นส่วนจำกัดปทุมรัตต์ศึกษาภัณฑ์","67129168351"]
[46,2568,"องค์การบริหารส่วนตำบลกู่กาสิงห์","เกษตรวิสัย","ร้อยเอ็ด","มหาดไทย","องค์กรปกครองส่วนท้องถิ่น","โครงการจัดซื้อวัสดุคอมพิวเตอร์",1470,"ข้อบัญญัติงบประมาณประจำปี 2568","สิ้นสุดระยะสัญญา","วิธีเฉพาะเจาะจง",{"$f":"+Table1[[#This Row],[วงเงินงบประมาณที่ได้รับจัดสรร (บาท)]]","v":1470},{"$f":"+Table1[[#This Row],[ราคากลาง (บาท)]]","v":1470},"บริษัท ทรัพย์กวีโอเอเซ็นเตอร์ จำกัด","67129089339"]
[47,2568,"องค์การบริหารส่วนตำบลกู่กาสิงห์","เกษตรวิสัย","ร้อยเอ็ด","มหาดไทย","องค์กรปกครองส่วนท้องถิ่น","โครงการจัดซื้อมาตรวัดน้ำประปาหมู่บ้าน",9900,"ข้อบัญญัติงบประมาณประจำปี 2568","สิ้นสุดระยะสัญญา","วิธีเฉพาะเจาะจง",{"$f":"+Table1[[#This Row],[วงเงินงบประมาณที่ได้รับจัดสรร (บาท)]]","v":9900},{"$f":"+Table1[[#This Row],[ราคากลาง (บาท)]]","v":9900},"ห้างหุ้นส่วนจำกัดเที่ยงตรงวิทยุ","67129241510"]
[48,2568,"องค์การบริหารส่วนตำบลกู่กาสิงห์","เกษตรวิสัย","ร้อยเอ็ด","มหาดไทย","องค์กรปกครองส่วนท้องถิ่น","โครงการจัดซื้อน้ำดื่ม",700,"ข้อบัญญัติงบประมาณประจำปี 2568","สิ้นสุดระยะสัญญา","วิธีเฉพาะเจาะจง",{"$f":"+Table1[[#This Row],[วงเงินงบประมาณที่ได้รับจัดสรร (บาท)]]","v":700},{"$f":"+Table1[[#This Row],[ราคากลาง (บาท)]]","v":700},"นายนรินท์ ศรีนนท์","67129210564"]
[49,2568,"องค์การบริหารส่วนตำบลกู่กาสิงห์","เกษตรวิสัย","ร้อยเอ็ด","มหาดไทย","องค์กรปกครองส่วนท้องถิ่น","โครงการจัดซื้ออาหารเสริมนม ชนิดกล่อง ขนาด 200 มล.",226088.8,"ข้อบัญญัติงบประมาณประจำปี 2568","อยู่ระหว่างระยะสัญญา","วิธีเฉพาะเจาะจง",{"$f":"+Table1[[#This Row],[วงเงินงบประมาณที่ได้รับจัดสรร (บาท)]]","v":226088.8},{"$f":"+Table1[[#This Row],[ราคากลาง (บาท)]]","v":226088.8},"สหกรณ์โคนมกำแพงแสนจำกัด","67129210463"]
[50,2568,"องค์การบริหารส่วนตำบลกู่กาสิงห์","เกษตรวิสัย","ร้อยเอ็ด","มหาดไทย","องค์กรปกครองส่วนท้องถิ่น","โครงการจัดซื้อวัสดุสำนักงาน",6200,"ข้อบัญญัติงบประมาณประจำปี 2568","สิ้นสุดระยะสัญญา","วิธีเฉพาะเจาะจง",{"$f":"+Table1[[#This Row],[วงเงินงบประมาณที่ได้รับจัดสรร (บาท)]]","v":6200},{"$f":"+Table1[[#This Row],[ราคากลาง (บาท)]]","v":6200},"บริษัท ทรัพย์กวีโอเอเซ็นเตอร์ จำกัด","67129330237"]
[51,2568,"องค์การบริหารส่วนตำบลกู่กาสิงห์","เกษตรวิสัย","ร้อยเอ็ด","มหาดไทย","องค์กรปกครองส่วนท้องถิ่น","โครงการจ้างซ่อมครุภัณฑ์คอมพิวเตอร์",2180,"ข้อบัญญัติงบประมาณประจำปี 2568","สิ้นสุดระยะสัญญา","วิธีเฉพาะเจาะจง",{"$f":"+Table1[[#This Row],[วงเงินงบประมาณที่ได้รับจัดสรร (บาท)]]","v":2180},{"$f":"+Table1[[#This Row],[ราคากลาง (บาท)]]","v":2180},"บริษัท แอดไวซ์เกษตร จำกัด","68019151977"]
[52,2568,"องค์การบริหารส่วนตำบลกู่กาสิงห์","เกษตรวิสัย","ร้อยเอ็ด","มหาดไทย","องค์กรปกครองส่วนท้องถิ่น","โครงการจ้างพิมพ์ป้ายไวนิว ฯ",1579,"ข้อบัญญัติงบประมาณประจำปี 2568","สิ้นสุดระยะสัญญา","วิธีเฉพาะเจาะจง",{"$f":"+Table1[[#This Row],[วงเงินงบประมาณที่ได้รับจัดสรร (บาท)]]","v":1579},{"$f":"+Table1[[#This Row],[ราคากลาง (บาท)]]","v":1579},"ร้านเอ็กซิทอินเตอร์เนต","67129496983"]
[53,2568,"องค์การบริหารส่วนตำบลกู่กาสิงห์","เกษตรวิสัย","ร้อยเอ็ด","มหาดไทย","องค์กรปกครองส่วนท้องถิ่น","โครงการจ้างพิมพ์ป้ายไวนิว ฯ",5586,"ข้อบัญญัติงบประมาณประจำปี 2568","สิ้นสุดระยะสัญญา","วิธีเฉพาะเจาะจง",{"$f":"+Table1[[#This Row],[วงเงินงบประมาณที่ได้รับจัดสรร (บาท)]]","v":5586},{"$f":"+Table1[[#This Row],[ราคากลาง (บาท)]]","v":5586},"ร้านเอ็กซิทอินเตอร์เนต","67129336189"]
[54,2568,"องค์การบริหารส่วนตำบลกู่กาสิงห์","เกษตรวิสัย","ร้อยเอ็ด","มหาดไทย","องค์กรปกครองส่วนท้องถิ่น","โครงการจัดซื้อวัสดุสำนักงาน",3800,"ข้อบัญญัติงบประมาณประจำปี 2568","สิ้นสุดระยะสัญญา","วิธีเฉพาะเจาะจง",{"$f":"+Table1[[#This Row],[วงเงินงบประมาณที่ได้รับจัดสรร (บาท)]]","v":3800},{"$f":"+Table1[[#This Row],[ราคากลาง (บาท)]]","v":3800},"ห้างหุ้นส่วนจำกัดมงคลชัยวิทยาภัณฑ์","68019209124"]
[55,2568,"องค์การบริหารส่วนตำบลกู่กาสิงห์","เกษตรวิสัย","ร้อยเอ็ด","มหาดไทย","องค์กรปกครองส่วนท้องถิ่น","โครการซ่อมแซมครุภัณฑ์คอมพิวเตอร์",450,"ข้อบัญญัติงบประมาณประจำปี 2568","สิ้นสุดระยะสัญญา","วิธีเฉพาะเจาะจง",{"$f":"+Table1[[#This Row],[วงเงินงบประมาณที่ได้รับจัดสรร (บาท)]]","v":450},{"$f":"+Table1[[#This Row],[ราคากลาง (บาท)]]","v":450},"บริษัท แอดไวซ์เกษตร จำกัด","67129393329"]
[56,2568,"องค์การบริหารส่วนตำบลกู่กาสิงห์","เกษตรวิสัย","ร้อยเอ็ด","มหาดไทย","องค์กรปกครองส่วนท้องถิ่น","โครงการจัดซื้อครุภัณฑ์งานบ้านงานครัว",6000,"ข้อบัญญัติงบประมาณประจำปี 2568","สิ้นสุดระยะสัญญา","วิธีเฉพาะเจาะจง",{"$f":"+Table1[[#This Row],[วงเงินงบประมาณที่ได้รับจัดสรร (บาท)]]","v":6000},{"$f":"+Table1[[#This Row],[ราคากลาง (บาท)]]","v":6000},"ห้างหุ้นส่วนจำกัดเที่ยงตรงวิทยุ","67129385394"]
[57,2568,"องค์การบริหารส่วนตำบลกู่กาสิงห์","เกษตรวิสัย","ร้อยเอ็ด","มหาดไทย","องค์กรปกครองส่วนท้องถิ่น","โครงการจัดซื้อวัสดุงานบ้านงานครัว",3470,"ข้อบัญญัติงบประมาณประจำปี 2568","สิ้นสุดระยะสัญญา","วิธีเฉพาะเจาะจง",{"$f":"+Table1[[#This Row],[วงเงินงบประมาณที่ได้รับจัดสรร (บาท)]]","v":3470},{"$f":"+Table1[[#This Row],[ราคากลาง (บาท)]]","v":3470},"ห้างหุ้นส่วนจำกัดมงคลชัยวิทยาภัณฑ์","67129366346"]
[58,2568,"องค์การบริหารส่วนตำบลกู่กาสิงห์","เกษตรวิสัย","ร้อยเอ็ด","มหาดไทย","องค์กรปกครองส่วนท้องถิ่น","โครงการจัดซื้อวัสดุงานบ้านงานครัว",1000,"ข้อบัญญัติงบประมาณประจำปี 2568","สิ้นสุดระยะสัญญา","วิธีเฉพาะเจาะจง",{"$f":"+Table1[[#This Row],[วงเงินงบประมาณที่ได้รับจัดสรร (บาท)]]","v":1000},{"$f":"+Table1[[#This Row],[ราคากลาง (บาท)]]","v":1000},"ห้างหุ้นส่วนจำกัดเที่ยงตรงวิทยุ","67129373624"]
[59,2568,"องค์การบริหารส่วนตำบลกู่กาสิงห์","เกษตรวิสัย","ร้อยเอ็ด","มหาดไทย","องค์กรปกครองส่วนท้องถิ่น","โครงการเช่าเต้นท์ \"โครงการลดอุบัติเหตุประจำปี 2568\"",3000,"ข้อบัญญัติงบประมาณประจำปี 2568","สิ้นสุดระยะสัญญา","วิธีเฉพาะเจาะจง",{"$f":"+Table1[[#This Row],[วงเงินงบประมาณที่ได้รับจัดสรร (บาท)]]","v":3000},{"$f":"+Table1[[#This Row],[ราคากลาง (บาท)]]","v":3000},"นางแหวน ลิไสย์","67129351169"]
[60,2568,"องค์การบริหารส่วนตำบลกู่กาสิงห์","เกษตรวิสัย","ร้อยเอ็ด","มหาดไทย","องค์กรปกครองส่วนท้องถิ่น","โครงการจัดซื้อน้ำดื่ม",2700,"ข้อบัญญัติงบประมาณประจำปี 2568","สิ้นสุดระยะสัญญา","วิธีเฉพาะเจาะจง",{"$f":"+Table1[[#This Row],[วงเงินงบประมาณที่ได้รับจัดสรร (บาท)]]","v":2700},{"$f":"+Table1[[#This Row],[ราคากลาง (บาท)]]","v":2700},"นายบุญฑริก จำปาหอม","67129338294"]
[61,2568,"องค์การบริหารส่วนตำบลกู่กาสิงห์","เกษตรวิสัย","ร้อยเอ็ด","มหาดไทย","องค์กรปกครองส่วนท้องถิ่น","โครงการจัดซื้อเครื่องเล่นสนาม",25000,"ข้อบัญญัติงบประมาณประจำปี 2568","สิ้นสุดระยะสัญญา","วิธีเฉพาะเจาะจง",{"$f":"+Table1[[#This Row],[วงเงินงบประมาณที่ได้รับจัดสรร (บาท)]]","v":25000},{"$f":"+Table1[[#This Row],[ราคากลาง (บาท)]]","v":25000},"ร้านประตูชัยฟิตเนส","68019133125"]
[62,2568,"องค์การบริหารส่วนตำบลกู่กาสิงห์","เกษตรวิสัย","ร้อยเอ็ด","มหาดไทย","องค์กรปกครองส่วนท้องถิ่น","โครงการจัดซื้อเครื่องเล่นสนาม",25000,"ข้อบัญญัติงบประมาณประจำปี 2568","สิ้นสุดระยะสัญญา","วิธีเฉพาะเจาะจง",{"$f":"+Table1[[#This Row],[วงเงินงบประมาณที่ได้รับจัดสรร (บาท)]]","v":25000},{"$f":"+Table1[[#This Row],[ราคากลาง (บาท)]]","v":25000},"ร้านประตูชัยฟิตเนส","68019136089"]
[63,2568,"องค์การบริหารส่วนตำบลกู่กาสิงห์","เกษตรวิสัย","ร้อยเอ็ด","มหาดไทย","องค์กรปกครองส่วนท้องถิ่น","โครงการจัดซื้อเครื่องตัดหญ้าชนิดรถเข็น",19000,"ข้อบัญญัติงบประมาณประจำปี 2568","สิ้นสุดระยะสัญญา","วิธีเฉพาะเจาะจง",{"$f":"+Table1[[#This Row],[วงเงินงบประมาณที่ได้รับจัดสรร (บาท)]]","v":19000},{"$f":"+Table1[[#This Row],[ราคากลาง (บาท)]]","v":19000},"ห้างหุ้นส่วนจำกัดเที่ยงตรงวิทยุ","68019146151"]
[64,2568,"องค์การบริหารส่วนตำบลกู่กาสิงห์","เกษตรวิสัย","ร้อยเอ็ด","มหาดไทย","องค์กรปกครองส่วนท้องถิ่น","โครงการจัดซื้อวัสดุสำนักงาน",6850,"ข้อบัญญัติงบประมาณประจำปี 2568","สิ้นสุดระยะสัญญา","วิธีเฉพาะเจาะจง",{"$f":"+Table1[[#This Row],[วงเงินงบประมาณที่ได้รับจัดสรร (บาท)]]","v":6850},{"$f":"+Table1[[#This Row],[ราคากลาง (บาท)]]","v":6850},"ห้างหุ้นส่วนจำกัดมงคลชัยวิทยาภัณฑ์","68019150931"]
[65,2568,"องค์การบริหารส่วนตำบลกู่กาสิงห์","เกษตรวิสัย","ร้อยเอ็ด","มหาดไทย","องค์กรปกครองส่วนท้องถิ่น","โครงการจัดซื้อวัสดุสำนักงาน",2350,"ข้อบัญญัติงบประมาณประจำปี 2568","สิ้นสุดระยะสัญญา","วิธีเฉพาะเจาะจง",{"$f":"+Table1[[#This Row],[วงเงินงบประมาณที่ได้รับจัดสรร (บาท)]]","v":2350},{"$f":"+Table1[[#This Row],[ราคากลาง (บาท)]]","v":2350},"ห้างหุ้นส่วนจำกัดมงคลชัยวิทยาภัณฑ์","68019150161"]
[66,2568,"องค์การบริหารส่วนตำบลกู่กาสิงห์","เกษตรวิสัย","ร้อยเอ็ด","มหาดไทย","องค์กรปกครองส่วนท้องถิ่น","โครงการซ่อมบำรุงรถบรรทุกน้ำเอนกประสงค์",36200,"ข้อบัญญัติงบประมาณประจำปี 2568","สิ้นสุดระยะสัญญา","วิธีเฉพาะเจาะจง",{"$f":"+Table1[[#This Row],[วงเงินงบประมาณที่ได้รับจัดสรร (บาท)]]","v":36200},{"$f":"+Table1[[#This Row],[ราคากลาง (บาท)]]","v":36200},"ร้านยอดนิยม","68019219427"]
[67,2568,"องค์การบริหารส่วนตำบลกู่กาสิงห์","เกษตรวิสัย","ร้อยเอ็ด","มหาดไทย","องค์กรปกครองส่วนท้องถิ่น","โครงการก่อสร้างถนนคอนกรีตเสริมเหล็ก หมู่ที่ 10 (เส้นนายทองจันทร์)",500000,"เงินกู้","อยู่ระหว่างระยะสัญญา","วิธีเฉพาะเจาะจง",499558.36,499000,"หจก.จตุรพัตรคอนกรีต","67069357334"]
[68,2568,"องค์การบริหารส่วนตำบลกู่กาสิงห์","เกษตรวิสัย","ร้อยเอ็ด","มหาดไทย","องค์กรปกครองส่วนท้องถิ่น","โครงการก่อสร้างถนนคอนกรีตเสริมเหล็ก หมู่ที่ 10 (เส้นนายสมบัติ)",500000,"เงินกู้","อยู่ระหว่างระยะสัญญา","วิธีเฉพาะเจาะจง",499558.36,499000,"หจก.จตุรพัตรคอนกรีต","67069357575"]
[69,2568,"องค์การบริหารส่วนตำบลกู่กาสิงห์","เกษตรวิสัย","ร้อยเอ็ด","มหาดไทย","องค์กรปกครองส่วนท้องถิ่น","โครงการก่อสร้างรางระบายน้ำ",377000,"ข้อบัญญัติงบประมาณประจำปี 2568","อยู่ระหว่างระยะสัญญา","วิธีเฉพาะเจาะจง",{"$f":"+Table1[[#This Row],[วงเงินงบประมาณที่ได้รับจัดสรร (บาท)]]","v":377000},{"$f":"+Table1[[#This Row],[ราคากลาง (บาท)]]","v":377000},"ร้านขวัญชัย โดย นายขวัญชัย สูงพล","68019191918"]
[70,2568,"องค์การบริหารส่วนตำบลกู่กาสิงห์","เกษตรวิสัย","ร้อยเอ็ด","มหาดไทย","องค์กรปกครองส่วนท้องถิ่น","โครการเสริมผิวแอสฟัลท์ ฯ หมู่ที่ 7",8894500,"เงินอุดหนุนเฉพาะกิจปี 2568","อยู่ระหว่างระยะสัญญา","วิธีประกาศเชิญชวนทั่วไป",9291723.1199999992,8879000,"บริษัท ท่าทรายรุ่งอรุณ จำกัด","67099491948"]
[71,2568,"องค์การบริหารส่วนตำบลกู่กาสิงห์","เกษตรวิสัย","ร้อยเอ็ด","มหาดไทย","องค์กรปกครองส่วนท้องถิ่น","โครการเสริมผิวแอสฟัลท์ ฯ หมู่ที่ 11",9980800,"เงินอุดหนุนเฉพาะกิจปี 2568","อยู่ระหว่างระยะสัญญา","วิธีประกาศเชิญชวนทั่วไป",10371934.949999999,9957000,"ห้างหุ้นส่วนจำกัดพรกิตติยโสธร","67099495786"]
[72,2568,"องค์การบริหารส่วนตำบลกู่กาสิงห์","เกษตรวิสัย","ร้อยเอ็ด","มหาดไทย","องค์กรปกครองส่วนท้องถิ่น","โครงการจัดซื้อวัสดุคอมพิวเตอร์",1700,"ข้อบัญญัติงบประมาณประจำปี 2568","สิ้นสุดระยะสัญญา","วิธีเฉพาะเจาะจง",{"$f":"+Table1[[#This Row],[วงเงินงบประมาณที่ได้รับจัดสรร (บาท)]]","v":1700},{"$f":"+Table1[[#This Row],[ราคากลาง (บาท)]]","v":1700},"ร้านบีแอลคอม","68019139197"]
[73,2568,"องค์การบริหารส่วนตำบลกู่กาสิงห์","เกษตรวิสัย","ร้อยเอ็ด","มหาดไทย","องค์กรปกครองส่วนท้องถิ่น","โครงการก่อสร้างถนนดิน หมู่ที่ 6 ฯ",261000,"ข้อบัญญัติงบประมาณประจำปี 2568","อยู่ระหว่างระยะสัญญา","วิธีเฉพาะเจาะจง",{"$f":"+Table1[[#This Row],[วงเงินงบประมาณที่ได้รับจัดสรร (บาท)]]","v":261000},{"$f":"+Table1[[#This Row],[ราคากลาง (บาท)]]","v":261000},"ร้านสุพรรณเจริญยนต์","68019458906"]
[74,2568,"องค์การบริหารส่วนตำบลกู่กาสิงห์","เกษตรวิสัย","ร้อยเอ็ด","มหาดไทย","องค์กรปกครองส่วนท้องถิ่น","โครงการจัดซื้อครุภัณฑ์คอมพิวเตอร์",8000,"ข้อบัญญัติงบประมาณประจำปี 2568","สิ้นสุดระยะสัญญา","วิธีเฉพาะเจาะจง",{"$f":"+Table1[[#This Row],[วงเงินงบประมาณที่ได้รับจัดสรร (บาท)]]","v":8000},{"$f":"+Table1[[#This Row],[ราคากลาง (บาท)]]","v":8000},"บริษัท แอดไวซ์เกษตร จำกัด","67129375531"]
[75,2568,"องค์การบริหารส่วนตำบลกู่กาสิงห์","เกษตรวิสัย","ร้อยเอ็ด","มหาดไทย","องค์กรปกครองส่วนท้องถิ่น","โครงการจัดซื้อเสาไฟฟ้าพลังงานแสงอาทิตย์ ฯ",120000,"ข้อบัญญัติงบประมาณประจำปี 2568","สิ้นสุดระยะสัญญา","วิธีเฉพาะเจาะจง",{"$f":"+Table1[[#This Row],[วงเงินงบประมาณที่ได้รับจัดสรร (บาท)]]","v":120000},{"$f":"+Table1[[#This Row],[ราคากลาง (บาท)]]","v":120000},"ร้านทรัพย์ถาวรการค้า","68029094602"]
[76,2568,"องค์การบริหารส่วนตำบลกู่กาสิงห์","เกษตรวิสัย","ร้อยเอ็ด","มหาดไทย","องค์กรปกครองส่วนท้องถิ่น","โครงการจ้างพิมพ์ป้ายไวนิว ฯ",500,"ข้อบัญญัติงบประมาณประจำปี 2568","สิ้นสุดระยะสัญญา","วิธีเฉพาะเจาะจง",{"$f":"+Table1[[#This Row],[วงเงินงบประมาณที่ได้รับจัดสรร (บาท)]]","v":500},{"$f":"+Table1[[#This Row],[ราคากลาง (บาท)]]","v":500},"ร้านเอ็กซิทอินเตอร์เนต","68029149820"]
[77,2568,"องค์การบริหารส่วนตำบลกู่กาสิงห์","เกษตรวิสัย","ร้อยเอ็ด","มหาดไทย","องค์กรปกครองส่วนท้องถิ่น","โครงการจัดซื้อพาทิชั่น ฯ",12000,"ข้อบัญญัติงบประมาณประจำปี 2568","สิ้นสุดระยะสัญญา","วิธีเฉพาะเจาะจง",{"$f":"+Table1[[#This Row],[วงเงินงบประมาณที่ได้รับจัดสรร (บาท)]]","v":12000},{"$f":"+Table1[[#This Row],[ราคากลาง (บาท)]]","v":12000},"ร้าน ส.สวัสดีผ้าม่าน","68029167339"]
[78,2568,"องค์การบริหารส่วนตำบลกู่กาสิงห์","เกษตรวิสัย","ร้อยเอ็ด","มหาดไทย","องค์กรปกครองส่วนท้องถิ่น","โครงการจัดซื้อน้ำดื่ม",3460,"ข้อบัญญัติงบประมาณประจำปี 2568","สิ้นสุดระยะสัญญา","วิธีเฉพาะเจาะจง",{"$f":"+Table1[[#This Row],[วงเงินงบประมาณที่ได้รับจัดสรร (บาท)]]","v":3460},{"$f":"+Table1[[#This Row],[ราคากลาง (บาท)]]","v":3460},"นายบุญฑริก จำปาหอม","67129338294"]
[79,2568,"องค์การบริหารส่วนตำบลกู่กาสิงห์","เกษตรวิสัย","ร้อยเอ็ด","มหาดไทย","องค์กรปกครองส่วนท้องถิ่น","โครงการจัดซื้อซุ้มเฉลิมพระเกียรติ",99000,"ข้อบัญญัติงบประมาณประจำปี 2568","สิ้นสุดระยะสัญญา","วิธีเฉพาะเจาะจง",{"$f":"+Table1[[#This Row],[วงเงินงบประมาณที่ได้รับจัดสรร (บาท)]]","v":99000},97000,"ร้านศักดิ์สยาม","68019308727"]
[80,2568,"องค์การบริหารส่วนตำบลกู่กาสิงห์","เกษตรวิสัย","ร้อยเอ็ด","มหาดไทย","องค์กรปกครองส่วนท้องถิ่น","โครงการจัดซื้อวัสดุงานบ้านงานครัว",20400,"ข้อบัญญัติงบประมาณประจำปี 2568","สิ้นสุดระยะสัญญา","วิธีเฉพาะเจาะจง",{"$f":"+Table1[[#This Row],[วงเงินงบประมาณที่ได้รับจัดสรร (บาท)]]","v":20400},{"$f":"+Table1[[#This Row],[ราคากลาง (บาท)]]","v":20400},"ห้างหุ้นส่วนจำกัดมงคลชัยวิทยาภัณฑ์","68029168898"]
[81,2568,"องค์การบริหารส่วนตำบลกู่กาสิงห์","เกษตรวิสัย","ร้อยเอ็ด","มหาดไทย","องค์กรปกครองส่วนท้องถิ่น","โครงการจัดซื้อวัสดุไฟฟ้า",14515,"ข้อบัญญัติงบประมาณประจำปี 2568","สิ้นสุดระยะสัญญา","วิธีเฉพาะเจาะจง",{"$f":"+Table1[[#This Row],[วงเงินงบประมาณที่ได้รับจัดสรร (บาท)]]","v":14515},{"$f":"+Table1[[#This Row],[ราคากลาง (บาท)]]","v":14515},"ห้างหุ้นส่วนจำกัดเที่ยงตรงวิทยุ","68029443799"]
[82,2568,"องค์การบริหารส่วนตำบลกู่กาสิงห์","เกษตรวิสัย","ร้อยเอ็ด","มหาดไทย","องค์กรปกครองส่วนท้องถิ่น","โครงการจัดซื้อวัสดุคอมพิวเตอร์",21490,"ข้อบัญญัติงบประมาณประจำปี 2568","สิ้นสุดระยะสัญญา","วิธีเฉพาะเจาะจง",{"$f":"+Table1[[#This Row],[วงเงินงบประมาณที่ได้รับจัดสรร (บาท)]]","v":21490},{"$f":"+Table1[[#This Row],[ราคากลาง (บาท)]]","v":21490},"บริษัท แอดไวซ์เกษตร จำกัด","68019225944"]
[83,2568,"องค์การบริหารส่วนตำบลกู่กาสิงห์","เกษตรวิสัย","ร้อยเอ็ด","มหาดไทย","องค์กรปกครองส่วนท้องถิ่น","โครงการจัดซื้อวัสดุคอมพิวเตอร์",4050,"ข้อบัญญัติงบประมาณประจำปี 2568","สิ้นสุดระยะสัญญา","วิธีเฉพาะเจาะจง",{"$f":"+Table1[[#This Row],[วงเงินงบประมาณที่ได้รับจัดสรร (บาท)]]","v":4050},{"$f":"+Table1[[#This Row],[ราคากลาง (บาท)]]","v":4050},"ร้านบีแอลคอม","68019225944"]
[84,2568,"องค์การบริหารส่วนตำบลกู่กาสิงห์","เกษตรวิสัย","ร้อยเอ็ด","มหาดไทย","องค์กรปกครองส่วนท้องถิ่น","โครงการจัดซื้อวัสดุก่อสร้าง ",8250,"ข้อบัญญัติงบประมาณประจำปี 2568","สิ้นสุดระยะสัญญา","วิธีเฉพาะเจาะจง",{"$f":"+Table1[[#This Row],[วงเงินงบประมาณที่ได้รับจัดสรร (บาท)]]","v":8250},{"$f":"+Table1[[#This Row],[ราคากลาง (บาท)]]","v":8250},"ห้างหุ้นส่วนจำกัดเที่ยงตรงวิทยุ","68039003129"]
[85,2568,"องค์การบริหารส่วนตำบลกู่กาสิงห์","เกษตรวิสัย","ร้อยเอ็ด","มหาดไทย","องค์กรปกครองส่วนท้องถิ่น","โครงการจัดซื้อวัสดุก่อสร้าง ",26730,"ข้อบัญญัติงบประมาณประจำปี 2568","อยู่ระหว่างระยะสัญญา","วิธีเฉพาะเจาะจง",{"$f":"+Table1[[#This Row],[วงเงินงบประมาณที่ได้รับจัดสรร (บาท)]]","v":26730},{"$f":"+Table1[[#This Row],[ราคากลาง (บาท)]]","v":26730},"ร้านสุพรรณเจริญยนต์","68029237400"]
[86,2568,"องค์การบริหารส่วนตำบลกู่กาสิงห์","เกษตรวิสัย","ร้อยเอ็ด","มหาดไทย","องค์กรปกครองส่วนท้องถิ่น"," โครงการจ้างซ่อมแซมถนนลงหินลูกรัง หมู่ที่ 11",104000,"ข้อบัญญัติงบประมาณประจำปี 2568","อยู่ระหว่างระยะสัญญา","วิธีเฉพาะเจาะจง",{"$f":"+Table1[[#This Row],[วงเงินงบประมาณที่ได้รับจัดสรร (บาท)]]","v":104000},{"$f":"+Table1[[#This Row],[ราคากลาง (บาท)]]","v":104000},"ร้านขวัญชัย โดย นายขวัญชัย สูงพล","68029327277"]
[87,2568,"องค์การบริหารส่วนตำบลกู่กาสิงห์","เกษตรวิสัย","ร้อยเอ็ด","มหาดไทย","องค์กรปกครองส่วนท้องถิ่น"," โครงการจ้างซ่อมแซมถนนลงหินลูกรัง หมู่ที่ 6",66300,"ข้อบัญญัติงบประมาณประจำปี 2568","อยู่ระหว่างระยะสัญญา","วิธีเฉพาะเจาะจง",{"$f":"+Table1[[#This Row],[วงเงินงบประมาณที่ได้รับจัดสรร (บาท)]]","v":66300},{"$f":"+Table1[[#This Row],[ราคากลาง (บาท)]]","v":66300},"ร้านขวัญชัย โดย นายขวัญชัย สูงพล","68029327458"]
[88,2568,"องค์การบริหารส่วนตำบลกู่กาสิงห์","เกษตรวิสัย","ร้อยเอ็ด","มหาดไทย","องค์กรปกครองส่วนท้องถิ่น","โครงการจัดซื้อวัสดุป้องกัน ฯ",50500,"ข้อบัญญัติงบประมาณประจำปี 2568","อยู่ระหว่างระยะสัญญา","วิธีเฉพาะเจาะจง",{"$f":"+Table1[[#This Row],[วงเงินงบประมาณที่ได้รับจัดสรร (บาท)]]","v":50500},{"$f":"+Table1[[#This Row],[ราคากลาง (บาท)]]","v":50500},"ร้านมานะการดับเพลิง","68029532543"]
[89,2568,"องค์การบริหารส่วนตำบลกู่กาสิงห์","เกษตรวิสัย","ร้อยเอ็ด","มหาดไทย","องค์กรปกครองส่วนท้องถิ่น","โครงการจัดซื้อวัสดุก่อสร้าง",320000,"เงินอุดหนุนจากหน่วยงานอื่น (พช)","สิ้นสุดระยะสัญญา","วิธีเฉพาะเจาะจง",{"$f":"+Table1[[#This Row],[วงเงินงบประมาณที่ได้รับจัดสรร (บาท)]]","v":320000},{"$f":"+Table1[[#This Row],[ราคากลาง (บาท)]]","v":320000},"ร้านพงศ์เจริญ","68029221702"]
[90,2568,"องค์การบริหารส่วนตำบลกู่กาสิงห์","เกษตรวิสัย","ร้อยเอ็ด","มหาดไทย","องค์กรปกครองส่วนท้องถิ่น","โครงการจัดซื้อธงตราสัญลักษณ์",24000,"ข้อบัญญัติงบประมาณประจำปี 2568","สิ้นสุดระยะสัญญา","วิธีเฉพาะเจาะจง",{"$f":"+Table1[[#This Row],[วงเงินงบประมาณที่ได้รับจัดสรร (บาท)]]","v":24000},{"$f":"+Table1[[#This Row],[ราคากลาง (บาท)]]","v":24000},"หจกสหพัฒนไพบูลย์","68029512638"]
[91,2568,"องค์การบริหารส่วนตำบลกู่กาสิงห์","เกษตรวิสัย","ร้อยเอ็ด","มหาดไทย","องค์กรปกครองส่วนท้องถิ่น","โครงการจัดซื้อวัสดุป้องกัน ฯ",14000,"ข้อบัญญัติงบประมาณประจำปี 2568","สิ้นสุดระยะสัญญา","วิธีเฉพาะเจาะจง",{"$f":"+Table1[[#This Row],[วงเงินงบประมาณที่ได้รับจัดสรร (บาท)]]","v":14000},{"$f":"+Table1[[#This Row],[ราคากลาง (บาท)]]","v":14000},"ร้านซัพพลายเทรดดิ้ง","68029532543"]
[92,2568,"องค์การบริหารส่วนตำบลกู่กาสิงห์","เกษตรวิสัย","ร้อยเอ็ด","มหาดไทย","องค์กรปกครองส่วนท้องถิ่น","โครงการจัดซื้อวัสดุงานบ้านงานครัว",15000,"ข้อบัญญัติงบประมาณประจำปี 2568","สิ้นสุดระยะสัญญา","วิธีเฉพาะเจาะจง",{"$f":"+Table1[[#This Row],[วงเงินงบประมาณที่ได้รับจัดสรร (บาท)]]","v":15000},{"$f":"+Table1[[#This Row],[ราคากลาง (บาท)]]","v":15000},"ร้านไพศาลพาณิชย์","68039003227"]
[93,2568,"องค์การบริหารส่วนตำบลกู่กาสิงห์","เกษตรวิสัย","ร้อยเอ็ด","มหาดไทย","องค์กรปกครองส่วนท้องถิ่น","โครงการจัดซื้อวัสดุก่อสร้าง (ประปา)",6725,"ข้อบัญญัติงบประมาณประจำปี 2568","สิ้นสุดระยะสัญญา","วิธีเฉพาะเจาะจง",{"$f":"+Table1[[#This Row],[วงเงินงบประมาณที่ได้รับจัดสรร (บาท)]]","v":6725},{"$f":"+Table1[[#This Row],[ราคากลาง (บาท)]]","v":6725},"ห้างหุ้นส่วนจำกัดเที่ยงตรงวิทยุ","68039003324"]
[94,2568,"องค์การบริหารส่วนตำบลกู่กาสิงห์","เกษตรวิสัย","ร้อยเอ็ด","มหาดไทย","องค์กรปกครองส่วนท้องถิ่น","โครงการจัดซื้อวัสดุคอมพิวเตอร์",800,"ข้อบัญญัติงบประมาณประจำปี 2568","สิ้นสุดระยะสัญญา","วิธีเฉพาะเจาะจง",{"$f":"+Table1[[#This Row],[วงเงินงบประมาณที่ได้รับจัดสรร (บาท)]]","v":800},{"$f":"+Table1[[#This Row],[ราคากลาง (บาท)]]","v":800},"บริษัท แอดไวซ์เกษตร จำกัด","67129088890"]
[95]
[96]
[97]
[98]
[99]
[100]

{"sheet":"ITA-o12 (2)","index":2,"n_rows":108,"n_cols":16,"rows_kept":108,"cut":false,"hidden":false,"merged":[[104,9,104,10]]}
["ที่","ปีงบประมาณ","ชื่อหน่วยงาน","อำเภอ ","จังหวัด","กระทรวง","ประเภทหน่วยงาน","ชื่อรายการของงานที่ซื้อหรือจ้าง","วงเงินงบประมาณที่ได้รับจัดสรร (บาท)","แหล่งที่มาของงบประมาณ ","สถานะการจัดซื้อจัดจ้าง","วิธีการจัดซื้อจัดจ้าง","ราคากลาง (บาท)","ราคาที่ตกลงซื้อหรือจ้าง (บาท)","รายชื่อผู้ประกอบการที่ได้รับการคัดเลือก","เลขที่โครงการในระบบ e-GP"]
[1,2568,"องค์การบริหารส่วนตำบลกู่กาสิงห์","เกษตรวิสัย","ร้อยเอ็ด","มหาดไทย","องค์กรปกครองส่วนท้องถิ่น","โครงการก่อสร้างรางระบายน้ำ",377000,"ข้อบัญญัติงบประมาณประจำปี 2568","อยู่ระหว่างระยะสัญญา","วิธีเฉพาะเจาะจง",{"$f":"+Table13[[#This Row],[วงเงินงบประมาณที่ได้รับจัดสรร (บาท)]]","v":377000},{"$f":"+Table13[[#This Row],[ราคากลาง (บาท)]]","v":377000},"ร้านขวัญชัย โดย นายขวัญชัย สูงพล","68019191918"]
[2,2568,"องค์การบริหารส่วนตำบลกู่กาสิงห์","เกษตรวิสัย","ร้อยเอ็ด","มหาดไทย","องค์กรปกครองส่วนท้องถิ่น","โครงการก่อสร้างถนนดิน หมู่ที่ 6 ฯ",261000,"ข้อบัญญัติงบประมาณประจำปี 2568","อยู่ระหว่างระยะสัญญา","วิธีเฉพาะเจาะจง",{"$f":"+Table13[[#This Row],[วงเงินงบประมาณที่ได้รับจัดสรร (บาท)]]","v":261000},{"$f":"+Table13[[#This Row],[ราคากลาง (บาท)]]","v":261000},"ร้านสุพรรณเจริญยนต์","68019458906"]
[3,2568,"องค์การบริหารส่วนตำบลกู่กาสิงห์","เกษตรวิสัย","ร้อยเอ็ด","มหาดไทย","องค์กรปกครองส่วนท้องถิ่น","โครงการจัดซื้อเสาไฟฟ้าพลังงานแสงอาทิตย์ ฯ",120000,"ข้อบัญญัติงบประมาณประจำปี 2568","สิ้นสุดระยะสัญญา","วิธีเฉพาะเจาะจง",{"$f":"+Table13[[#This Row],[วงเงินงบประมาณที่ได้รับจัดสรร (บาท)]]","v":120000},{"$f":"+Table13[[#This Row],[ราคากลาง (บาท)]]","v":120000},"ร้านทรัพย์ถาวรการค้า","68029094602"]
[4,2568,"องค์การบริหารส่วนตำบลกู่กาสิงห์","เกษตรวิสัย","ร้อยเอ็ด","มหาดไทย","องค์กรปกครองส่วนท้องถิ่น","โครงการจัดซื้อซุ้มเฉลิมพระเกียรติ",99000,"ข้อบัญญัติงบประมาณประจำปี 2568","สิ้นสุดระยะสัญญา","วิธีเฉพาะเจาะจง",{"$f":"+Table13[[#This Row],[วงเงินงบประมาณที่ได้รับจัดสรร (บาท)]]","v":99000},97000,"ร้านศักดิ์สยาม","68019308727"]
[5,2568,"องค์การบริหารส่วนตำบลกู่กาสิงห์","เกษตรวิสัย","ร้อยเอ็ด","มหาดไทย","องค์กรปกครองส่วนท้องถิ่น","โครงการจัดซื้อครุภัณฑ์คอมพิวเตอร์",27000,"ข้อบัญญัติงบประมาณประจำปี 2568","สิ้นสุดระยะสัญญา","วิธีเฉพาะเจาะจง",{"$f":"+Table13[[#This Row],[วงเงินงบประมาณที่ได้รับจัดสรร (บาท)]]","v":27000},{"$f":"+Table13[[#This Row],[ราคากลาง (บาท)]]","v":27000},"บริษัท แอดไวซ์เกษตร จำกัด","67119360853"]
[6,2568,"องค์การบริหารส่วนตำบลกู่กาสิงห์","เกษตรวิสัย","ร้อยเอ็ด","มหาดไทย","องค์กรปกครองส่วนท้องถิ่น","โครงการจัดซื้อเครื่องเล่นสนาม",25000,"ข้อบัญญัติงบประมาณประจำปี 2568","สิ้นสุดระยะสัญญา","วิธีเฉพาะเจาะจง",{"$f":"+Table13[[#This Row],[วงเงินงบประมาณที่ได้รับจัดสรร (บาท)]]","v":25000},{"$f":"+Table13[[#This Row],[ราคากลาง (บาท)]]","v":25000},"ร้านประตูชัยฟิตเนส","68019133125"]
[7,2568,"องค์การบริหารส่วนตำบลกู่กาสิงห์","เกษตรวิสัย","ร้อยเอ็ด","มหาดไทย","องค์กรปกครองส่วนท้องถิ่น","โครงการจัดซื้อเครื่องเล่นสนาม",25000,"ข้อบัญญัติงบประมาณประจำปี 2568","สิ้นสุดระยะสัญญา","วิธีเฉพาะเจาะจง",{"$f":"+Table13[[#This Row],[วงเงินงบประมาณที่ได้รับจัดสรร (บาท)]]","v":25000},{"$f":"+Table13[[#This Row],[ราคากลาง (บาท)]]","v":25000},"ร้านประตูชัยฟิตเนส","68019136089"]
[8,2568,"องค์การบริหารส่วนตำบลกู่กาสิงห์","เกษตรวิสัย","ร้อยเอ็ด","มหาดไทย","องค์กรปกครองส่วนท้องถิ่น","โครงการจัดซื้อปั้มน้ำชนิดจุ่ม (ซัมเมอร์ส ขนาด 1.5 แรง)",24500,"ข้อบัญญัติงบประมาณประจำปี 2568","สิ้นสุดระยะสัญญา","วิธีเฉพาะเจาะจง",24500,24500,"ห้างหุ้นส่วนจำกัดเที่ยงตรงวิทยุ","67109428815"]
[9,2568,"องค์การบริหารส่วนตำบลกู่กาสิงห์","เกษตรวิสัย","ร้อยเอ็ด","มหาดไทย","องค์กรปกครองส่วนท้องถิ่น","โครงการจัดซื้อครุภัณฑ์คอมพิวเตอร์",19000,"ข้อบัญญัติงบประมาณประจำปี 2568","สิ้นสุดระยะสัญญา","วิธีเฉพาะเจาะจง",{"$f":"+Table13[[#This Row],[วงเงินงบประมาณที่ได้รับจัดสรร (บาท)]]","v":19000},{"$f":"+Table13[[#This Row],[ราคากลาง (บาท)]]","v":19000},"บริษัท แอดไวซ์เกษตร จำกัด","67119077391"]
[10,2568,"องค์การบริหารส่วนตำบลกู่กาสิงห์","เกษตรวิสัย","ร้อยเอ็ด","มหาดไทย","องค์กรปกครองส่วนท้องถิ่น","โครงการจัดซื้อเครื่องตัดหญ้าชนิดรถเข็น",19000,"ข้อบัญญัติงบประมาณประจำปี 2568","สิ้นสุดระยะสัญญา","วิธีเฉพาะเจาะจง",{"$f":"+Table13[[#This Row],[วงเงินงบประมาณที่ได้รับจัดสรร (บาท)]]","v":19000},{"$f":"+Table13[[#This Row],[ราคากลาง (บาท)]]","v":19000},"ห้างหุ้นส่วนจำกัดเที่ยงตรงวิทยุ","68019146151"]
[11,2568,"องค์การบริหารส่วนตำบลกู่กาสิงห์","เกษตรวิสัย","ร้อยเอ็ด","มหาดไทย","องค์กรปกครองส่วนท้องถิ่น","โครงการจัดซื้อครุภัณฑ์สำนักงาน",10000,"ข้อบัญญัติงบประมาณประจำปี 2568","สิ้นสุดระยะสัญญา","วิธีเฉพาะเจาะจง",{"$f":"+Table13[[#This Row],[วงเงินงบประมาณที่ได้รับจัดสรร (บาท)]]","v":10000},{"$f":"+Table13[[#This Row],[ราคากลาง (บาท)]]","v":10000},"ห้างหุ้นส่วนจำกัดปทุมรัตต์ศึกษาภัณฑ์","67129168351"]
[12,2568,"องค์การบริหารส่วนตำบลกู่กาสิงห์","เกษตรวิสัย","ร้อยเอ็ด","มหาดไทย","องค์กรปกครองส่วนท้องถิ่น","โครงการจัดซื้อครุภัณฑ์คอมพิวเตอร์",8000,"ข้อบัญญัติงบประมาณประจำปี 2568","สิ้นสุดระยะสัญญา","วิธีเฉพาะเจาะจง",{"$f":"+Table13[[#This Row],[วงเงินงบประมาณที่ได้รับจัดสรร (บาท)]]","v":8000},{"$f":"+Table13[[#This Row],[ราคากลาง (บาท)]]","v":8000},"บริษัท แอดไวซ์เกษตร จำกัด","67129375531"]
[13,2568,"องค์การบริหารส่วนตำบลกู่กาสิงห์","เกษตรวิสัย","ร้อยเอ็ด","มหาดไทย","องค์กรปกครองส่วนท้องถิ่น","โครการเสริมผิวแอสฟัลท์ ฯ หมู่ที่ 11",9980800,"เงินอุดหนุนเฉพาะกิจปี 2568","อยู่ระหว่างระยะสัญญา","วิธีประกาศเชิญชวนทั่วไป",10371934.949999999,9957000,"ห้างหุ้นส่วนจำกัดพรกิตติยโสธร","67099495786"]
[14,2568,"องค์การบริหารส่วนตำบลกู่กาสิงห์","เกษตรวิสัย","ร้อยเอ็ด","มหาดไทย","องค์กรปกครองส่วนท้องถิ่น","โครการเสริมผิวแอสฟัลท์ ฯ หมู่ที่ 7",8894500,"เงินอุดหนุนเฉพาะกิจปี 2568","อยู่ระหว่างระยะสัญญา","วิธีประกาศเชิญชวนทั่วไป",9291723.1199999992,8879000,"บริษัท ท่าทรายรุ่งอรุณ จำกัด","67099491948"]
[15,2568,"องค์การบริหารส่วนตำบลกู่กาสิงห์","เกษตรวิสัย","ร้อยเอ็ด","มหาดไทย","องค์กรปกครองส่วนท้องถิ่น","โครงการก่อสร้างถนนคอนกรีตเสริมเหล็ก หมู๋ที่ 11 (บ้านนางอ่อนจันทร์)",500000,"เงินกู้","สิ้นสุดระยะสัญญา","วิธีเฉพาะเจาะจง",499558.36,499000,"ห้างหุ้นส่วนจำกัด ศ.เจริญชัยวัสดุ","67069355140"]
[16,2568,"องค์การบริหารส่วนตำบลกู่กาสิงห์","เกษตรวิสัย","ร้อยเอ็ด","มหาดไทย","องค์กรปกครองส่วนท้องถิ่น","โครงการก่อสร้างถนนคอนกรีตเสริมเหล็ก หมู๋ที่ 11 (เส้นรอบวัดไตรตรึงษ์)",500000,"เงินกู้","สิ้นสุดระยะสัญญา","วิธีเฉพาะเจาะจง",499558.36,499000,"ห้างหุ้นส่วนจำกัด ศ.เจริญชัยวัสดุ","67069356642"]
[17,2568,"องค์การบริหารส่วนตำบลกู่กาสิงห์","เกษตรวิสัย","ร้อยเอ็ด","มหาดไทย","องค์กรปกครองส่วนท้องถิ่น","โครงการก่อสร้างถนนคอนกรีตเสริมเหล็ก หมู่ที่ 12 (เส้นโรงสี ฯ)",500000,"เงินกู้","สิ้นสุดระยะสัญญา","วิธีเฉพาะเจาะจง",499558.36,499000,"ห้างหุ้นส่วนจำกัดไผ่ทองวิศวกรรม","67069356642"]
[18,2568,"องค์การบริหารส่วนตำบลกู่กาสิงห์","เกษตรวิสัย","ร้อยเอ็ด","มหาดไทย","องค์กรปกครองส่วนท้องถิ่น","โครงการก่อสร้างถนนคอนกรีตเสริมเหล็ก หมู่ที่ 12 (เส้นบ้านผู้ช่วยปราณี ฯ)",500000,"เงินกู้","สิ้นสุดระยะสัญญา","วิธีเฉพาะเจาะจง",499558.36,499000,"ห้างหุ้นส่วนจำกัดไผ่ทองวิศวกรรม","67096357047"]
[19,2568,"องค์การบริหารส่วนตำบลกู่กาสิงห์","เกษตรวิสัย","ร้อยเอ็ด","มหาดไทย","องค์กรปกครองส่วนท้องถิ่น","โครงการก่อสร้างถนนคอนกรีตเสริมเหล็ก หมู่ที่ 10 (เส้นนายทองจันทร์)",500000,"เงินกู้","อยู่ระหว่างระยะสัญญา","วิธีเฉพาะเจาะจง",499558.36,499000,"หจก.จตุรพัตรคอนกรีต","67069357334"]
[20,2568,"องค์การบริหารส่วนตำบลกู่กาสิงห์","เกษตรวิสัย","ร้อยเอ็ด","มหาดไทย","องค์กรปกครองส่วนท้องถิ่น","โครงการก่อสร้างถนนคอนกรีตเสริมเหล็ก หมู่ที่ 10 (เส้นนายสมบัติ)",500000,"เงินกู้","อยู่ระหว่างระยะสัญญา","วิธีเฉพาะเจาะจง",499558.36,499000,"หจก.จตุรพัตรคอนกรีต","67069357575"]
[21,2568,"องค์การบริหารส่วนตำบลกู่กาสิงห์","เกษตรวิสัย","ร้อยเอ็ด","มหาดไทย","องค์กรปกครองส่วนท้องถิ่น","โครงการจัดซื้อวัสดุก่อสร้าง",320000,"เงินอุดหนุนจากหน่วยงานอื่น (พช)","สิ้นสุดระยะสัญญา","วิธีเฉพาะเจาะจง",{"$f":"+Table13[[#This Row],[วงเงินงบประมาณที่ได้รับจัดสรร (บาท)]]","v":320000},{"$f":"+Table13[[#This Row],[ราคากลาง (บาท)]]","v":320000},"ร้านพงศ์เจริญ","68029221702"]
[22,2568,"องค์การบริหารส่วนตำบลกู่กาสิงห์","เกษตรวิสัย","ร้อยเอ็ด","มหาดไทย","องค์กรปกครองส่วนท้องถิ่น","โครงการจัดซื้ออาหารเสริมนม ชนิดกล่อง ขนาด 200 มล.",226088.8,"ข้อบัญญัติงบประมาณประจำปี 2568","อยู่ระหว่างระยะสัญญา","วิธีเฉพาะเจาะจง",{"$f":"+Table13[[#This Row],[วงเงินงบประมาณที่ได้รับจัดสรร (บาท)]]","v":226088.8},{"$f":"+Table13[[#This Row],[ราคากลาง (บาท)]]","v":226088.8},"สหกรณ์โคนมกำแพงแสนจำกัด","67129210463"]
[23,2568,"องค์การบริหารส่วนตำบลกู่กาสิงห์","เกษตรวิสัย","ร้อยเอ็ด","มหาดไทย","องค์กรปกครองส่วนท้องถิ่น"," โครงการจ้างซ่อมแซมถนนลงหินลูกรัง หมู่ที่ 11",104000,"ข้อบัญญัติงบประมาณประจำปี 2568","อยู่ระหว่างระยะสัญญา","วิธีเฉพาะเจาะจง",{"$f":"+Table13[[#This Row],[วงเงินงบประมาณที่ได้รับจัดสรร (บาท)]]","v":104000},{"$f":"+Table13[[#This Row],[ราคากลาง (บาท)]]","v":104000},"ร้านขวัญชัย โดย นายขวัญชัย สูงพล","68029327277"]
[24,2568,"องค์การบริหารส่วนตำบลกู่กาสิงห์","เกษตรวิสัย","ร้อยเอ็ด","มหาดไทย","องค์กรปกครองส่วนท้องถิ่น","โครงการจัดซื้อวัสดุทางวิทยาศาสตร์",99300,"ข้อบัญญัติงบประมาณประจำปี 2568","สิ้นสุดระยะสัญญา","วิธีเฉพาะเจาะจง",{"$f":"+Table13[[#This Row],[วงเงินงบประมาณที่ได้รับจัดสรร (บาท)]]","v":99300},{"$f":"+Table13[[#This Row],[ราคากลาง (บาท)]]","v":99300},"ร้านค้ำคูณบุญกาพิมพ์","67119360395"]
[25,2568,"องค์การบริหารส่วนตำบลกู่กาสิงห์","เกษตรวิสัย","ร้อยเอ็ด","มหาดไทย","องค์กรปกครองส่วนท้องถิ่น","โครงการซ่อมแซมถนนลงหินคลุก",95000,"ข้อบัญญัติงบประมาณประจำปี 2568","สิ้นสุดระยะสัญญา","วิธีเฉพาะเจาะจง",105700,95000,"ร้าน ช.วัสดุ","67119130476"]
[26,2568,"องค์การบริหารส่วนตำบลกู่กาสิงห์","เกษตรวิสัย","ร้อยเอ็ด","มหาดไทย","องค์กรปกครองส่วนท้องถิ่น","โครงการจ้างซ่อมแซมถนนดิน หมู่ที่ 7,8,20 และ 12",83700,"ข้อบัญญัติงบประมาณประจำปี 2568","สิ้นสุดระยะสัญญา","วิธีเฉพาะเจาะจง",83700,83700,"ร้านสุพรรณเจริญยนต์","67119038962"]
[27,2568,"องค์การบริหารส่วนตำบลกู่กาสิงห์","เกษตรวิสัย","ร้อยเอ็ด","มหาดไทย","องค์กรปกครองส่วนท้องถิ่น","โครงการจ้างเหมาบริการปรับปรุงบ่อทิ้งขยะ",72000,"ข้อบัญญัติงบประมาณประจำปี 2568","สิ้นสุดระยะสัญญา","วิธีเฉพาะเจาะจง",{"$f":"+Table13[[#This Row],[วงเงินงบประมาณที่ได้รับจัดสรร (บาท)]]","v":72000},{"$f":"+Table13[[#This Row],[ราคากลาง (บาท)]]","v":72000},"ร้านสุพรรณเจริญยนต์","67129057220"]
[28,2568,"องค์การบริหารส่วนตำบลกู่กาสิงห์","เกษตรวิสัย","ร้อยเอ็ด","มหาดไทย","องค์กรปกครองส่วนท้องถิ่น"," โครงการจ้างซ่อมแซมถนนลงหินลูกรัง หมู่ที่ 6",66300,"ข้อบัญญัติงบประมาณประจำปี 2568","อยู่ระหว่างระยะสัญญา","วิธีเฉพาะเจาะจง",{"$f":"+Table13[[#This Row],[วงเงินงบประมาณที่ได้รับจัดสรร (บาท)]]","v":66300},{"$f":"+Table13[[#This Row],[ราคากลาง (บาท)]]","v":66300},"ร้านขวัญชัย โดย นายขวัญชัย สูงพล","68029327458"]
[29,2568,"องค์การบริหารส่วนตำบลกู่กาสิงห์","เกษตรวิสัย","ร้อยเอ็ด","มหาดไทย","องค์กรปกครองส่วนท้องถิ่น","โครงการจัดซื้อธงประดับเสาไฟฟ้า",62100,"ข้อบัญญัติงบประมาณประจำปี 2568","สิ้นสุดระยะสัญญา","วิธีเฉพาะเจาะจง",{"$f":"+Table13[[#This Row],[วงเงินงบประมาณที่ได้รับจัดสรร (บาท)]]","v":62100},{"$f":"+Table13[[#This Row],[ราคากลาง (บาท)]]","v":62100},"ร้านบีบีเคมีคอล","67119104424"]
[30,2568,"องค์การบริหารส่วนตำบลกู่กาสิงห์","เกษตรวิสัย","ร้อยเอ็ด","มหาดไทย","องค์กรปกครองส่วนท้องถิ่น","โครงการจ้างซ่อมแซมถนนลูกรัง",null,"ข้อบัญญัติงบประมาณประจำปี 2568","สิ้นสุดระยะสัญญา","วิธีเฉพาะเจาะจง",57100,{"$f":"+Table13[[#This Row],[ราคากลาง (บาท)]]","v":57100},"ร้านขวัญชัย โดย นายขวัญชัย สูงพล","67119104549"]
[31,2568,"องค์การบริหารส่วนตำบลกู่กาสิงห์","เกษตรวิสัย","ร้อยเอ็ด","มหาดไทย","องค์กรปกครองส่วนท้องถิ่น","โครงการจัดซื้ออาหารเสริมนม ชนิดกล่อง ขนาด 200 มล.",56170.17,"ข้อบัญญัติงบประมาณประจำปี 2568","สิ้นสุดระยะสัญญา","วิธีเฉพาะเจาะจง",{"$f":"+Table13[[#This Row],[วงเงินงบประมาณที่ได้รับจัดสรร (บาท)]]","v":56170.17},{"$f":"+Table13[[#This Row],[ราคากลาง (บาท)]]","v":56170.17},"สหกรณ์โคนมกำแพงแสนจำกัด","67119077768"]
[32,2568,"องค์การบริหารส่วนตำบลกู่กาสิงห์","เกษตรวิสัย","ร้อยเอ็ด","มหาดไทย","องค์กรปกครองส่วนท้องถิ่น","โครงการจัดซื้อวัสดุป้องกัน ฯ",50500,"ข้อบัญญัติงบประมาณประจำปี 2568","อยู่ระหว่างระยะสัญญา","วิธีเฉพาะเจาะจง",{"$f":"+Table13[[#This Row],[วงเงินงบประมาณที่ได้รับจัดสรร (บาท)]]","v":50500},{"$f":"+Table13[[#This Row],[ราคากลาง (บาท)]]","v":50500},"ร้านมานะการดับเพลิง","68029532543"]
[33,2568,"องค์การบริหารส่วนตำบลกู่กาสิงห์","เกษตรวิสัย","ร้อยเอ็ด","มหาดไทย","องค์กรปกครองส่วนท้องถิ่น","โครงการจ้างเหมาปรับเกรดถนนดินในพื้นที่หมู่ที่ 1,2,3,4 และ 9",49000,"ข้อบัญญัติงบประมาณประจำปี 2568","สิ้นสุดระยะสัญญา","วิธีเฉพาะเจาะจง",{"$f":"+Table13[[#This Row],[วงเงินงบประมาณที่ได้รับจัดสรร (บาท)]]","v":49000},{"$f":"+Table13[[#This Row],[ราคากลาง (บาท)]]","v":49000},"ร้านขวัญชัย โดย นายขวัญชัย สูงพล","67119350475"]
[34,2568,"องค์การบริหารส่วนตำบลกู่กาสิงห์","เกษตรวิสัย","ร้อยเอ็ด","มหาดไทย","องค์กรปกครองส่วนท้องถิ่น","โครงการจ้างเหมาปรับเกรดถนนดินในพื้นที่หมู่ที่ 5,6,7,8,10 และ 11",49000,"ข้อบัญญัติงบประมาณประจำปี 2568","สิ้นสุดระยะสัญญา","วิธีเฉพาะเจาะจง",{"$f":"+Table13[[#This Row],[วงเงินงบประมาณที่ได้รับจัดสรร (บาท)]]","v":49000},{"$f":"+Table13[[#This Row],[ราคากลาง (บาท)]]","v":49000},"ร้านสุพรรณเจริญยนต์","61779356888"]
[35,2568,"องค์การบริหารส่วนตำบลกู่กาสิงห์","เกษตรวิสัย","ร้อยเอ็ด","มหาดไทย","องค์กรปกครองส่วนท้องถิ่น","โครงการจ้างเหมาบริการเพื่อปฏิบัติงานประจำรถบรรทุกน้ำ",45000,"ข้อบัญญัติงบประมาณประจำปี 2568","สิ้นสุดระยะสัญญา","วิธีเฉพาะเจาะจง",{"$f":"+Table13[[#This Row],[วงเงินงบประมาณที่ได้รับจัดสรร (บาท)]]","v":45000},{"$f":"+Table13[[#This Row],[ราคากลาง (บาท)]]","v":45000},"นายพนม กองดวงจันทร์","จ้างบุคคลธรรมดาตามหนังสือกรมบัญชีกลาง ด่วนที่สุดที่ กค 0405.4/ว 322 ลงวันที่ 24 สิงหาคม 2560 ให้แสดงให้เห็นว่าไม่มีเลขที่โครงการในระบบ e-GP"]
[36,2568,"องค์การบริหารส่วนตำบลกู่กาสิงห์","เกษตรวิสัย","ร้อยเอ็ด","มหาดไทย","องค์กรปกครองส่วนท้องถิ่น","โครงการจ้างเหมาบริการเพื่อปฏิบัติงานประจำรถบรรทุกน้ำ",45000,"ข้อบัญญัติงบประมาณประจำปี 2568","สิ้นสุดระยะสัญญา","วิธีเฉพาะเจาะจง",{"$f":"+Table13[[#This Row],[วงเงินงบประมาณที่ได้รับจัดสรร (บาท)]]","v":45000},{"$f":"+Table13[[#This Row],[ราคากลาง (บาท)]]","v":45000},"นายอดิศักดิ์ นามเขตต์","จ้างบุคคลธรรมดาตามหนังสือกรมบัญชีกลาง ด่วนที่สุดที่ กค 0405.4/ว 322 ลงวันที่ 24 สิงหาคม 2560 ให้แสดงให้เห็นว่าไม่มีเลขที่โครงการในระบบ e-GP"]
[37,2568,"องค์การบริหารส่วนตำบลกู่กาสิงห์","เกษตรวิสัย","ร้อยเอ็ด","มหาดไทย","องค์กรปกครองส่วนท้องถิ่น","โครงการจัดซื้อวัสดุก่อสร้าง ",36785,"ข้อบัญญัติงบประมาณประจำปี 2568","สิ้นสุดระยะสัญญา","วิธีเฉพาะเจาะจง",36785,36785,"ร้านพงศ์เจริญ","67109399781"]
[38,2568,"องค์การบริหารส่วนตำบลกู่กาสิงห์","เกษตรวิสัย","ร้อยเอ็ด","มหาดไทย","องค์กรปกครองส่วนท้องถิ่น","โครงการซ่อมบำรุงรถบรรทุกน้ำเอนกประสงค์",36200,"ข้อบัญญัติงบประมาณประจำปี 2568","สิ้นสุดระยะสัญญา","วิธีเฉพาะเจาะจง",{"$f":"+Table13[[#This Row],[วงเงินงบประมาณที่ได้รับจัดสรร (บาท)]]","v":36200},{"$f":"+Table13[[#This Row],[ราคากลาง (บาท)]]","v":36200},"ร้านยอดนิยม","68019219427"]
[39,2568,"องค์การบริหารส่วนตำบลกู่กาสิงห์","เกษตรวิสัย","ร้อยเอ็ด","มหาดไทย","องค์กรปกครองส่วนท้องถิ่น","โครงการจ้างเหมาบริการเพื่อปฏิบัติงานซ่อมแซมระบบประปาและไฟฟ้าหมู่บ้าน",36000,"ข้อบัญญัติงบประมาณประจำปี 2568","สิ้นสุดระยะสัญญา","วิธีเฉพาะเจาะจง",{"$f":"+Table13[[#This Row],[วงเงินงบประมาณที่ได้รับจัดสรร (บาท)]]","v":36000},{"$f":"+Table13[[#This Row],[ราคากลาง (บาท)]]","v":36000},"นายกฤษฎา สิงห์กาละ","จ้างบุคคลธรรมดาตามหนังสือกรมบัญชีกลาง ด่วนที่สุดที่ กค 0405.4/ว 322 ลงวันที่ 24 สิงหาคม 2560 ให้แสดงให้เห็นว่าไม่มีเลขที่โครงการในระบบ e-GP"]
[40,2568,"องค์การบริหารส่วนตำบลกู่กาสิงห์","เกษตรวิสัย","ร้อยเอ็ด","มหาดไทย","องค์กรปกครองส่วนท้องถิ่น","โครงการจัดซื้อหินคลุก",31680,"ข้อบัญญัติงบประมาณประจำปี 2568","สิ้นสุดระยะสัญญา","วิธีเฉพาะเจาะจง",31680,31680,"ร้านขวัญชัย โดย นายขวัญชัย สูงพล","67109440298"]
[41,2568,"องค์การบริหารส่วนตำบลกู่กาสิงห์","เกษตรวิสัย","ร้อยเอ็ด","มหาดไทย","องค์กรปกครองส่วนท้องถิ่น","โครงการจัดซื้อวัสดุก่อสร้าง ",26730,"ข้อบัญญัติงบประมาณประจำปี 2568","อยู่ระหว่างระยะสัญญา","วิธีเฉพาะเจาะจง",{"$f":"+Table13[[#This Row],[วงเงินงบประมาณที่ได้รับจัดสรร (บาท)]]","v":26730},{"$f":"+Table13[[#This Row],[ราคากลาง (บาท)]]","v":26730},"ร้านสุพรรณเจริญยนต์","68029237400"]
[42,2568,"องค์การบริหารส่วนตำบลกู่กาสิงห์","เกษตรวิสัย","ร้อยเอ็ด","มหาดไทย","องค์กรปกครองส่วนท้องถิ่น","โครงการจัดซื้อธงตราสัญลักษณ์",24000,"ข้อบัญญัติงบประมาณประจำปี 2568","สิ้นสุดระยะสัญญา","วิธีเฉพาะเจาะจง",{"$f":"+Table13[[#This Row],[วงเงินงบประมาณที่ได้รับจัดสรร (บาท)]]","v":24000},{"$f":"+Table13[[#This Row],[ราคากลาง (บาท)]]","v":24000},"หจกสหพัฒนไพบูลย์","68029512638"]
[43,2568,"องค์การบริหารส่วนตำบลกู่กาสิงห์","เกษตรวิสัย","ร้อยเอ็ด","มหาดไทย","องค์กรปกครองส่วนท้องถิ่น","โครงการจ้างติดตั้งม่านพลาสติกห้องประชุม ฯ",23000,"ข้อบัญญัติงบประมาณประจำปี 2568","สิ้นสุดระยะสัญญา","วิธีเฉพาะเจาะจง",23000,23000,"ร้าน ส.สวัสดีผ้าม่าน","67109398805"]
[44,2568,"องค์การบริหารส่วนตำบลกู่กาสิงห์","เกษตรวิสัย","ร้อยเอ็ด","มหาดไทย","องค์กรปกครองส่วนท้องถิ่น","โครงการจัดซื้อวัสดุคอมพิวเตอร์",21490,"ข้อบัญญัติงบประมาณประจำปี 2568","สิ้นสุดระยะสัญญา","วิธีเฉพาะเจาะจง",{"$f":"+Table13[[#This Row],[วงเงินงบประมาณที่ได้รับจัดสรร (บาท)]]","v":21490},{"$f":"+Table13[[#This Row],[ราคากลาง (บาท)]]","v":21490},"บริษัท แอดไวซ์เกษตร จำกัด","68019225944"]
[45,2568,"องค์การบริหารส่วนตำบลกู่กาสิงห์","เกษตรวิสัย","ร้อยเอ็ด","มหาดไทย","องค์กรปกครองส่วนท้องถิ่น","โครงการจัดซื้อวัสดุงานบ้านงานครัว",20400,"ข้อบัญญัติงบประมาณประจำปี 2568","สิ้นสุดระยะสัญญา","วิธีเฉพาะเจาะจง",{"$f":"+Table13[[#This Row],[วงเงินงบประมาณที่ได้รับจัดสรร (บาท)]]","v":20400},{"$f":"+Table13[[#This Row],[ราคากลาง (บาท)]]","v":20400},"ห้างหุ้นส่วนจำกัดมงคลชัยวิทยาภัณฑ์","68029168898"]
[46,2568,"องค์การบริหารส่วนตำบลกู่กาสิงห์","เกษตรวิสัย","ร้อยเอ็ด","มหาดไทย","องค์กรปกครองส่วนท้องถิ่น","โครงการจัดซื้อมาตรวัดน้ำประปาหมู่บ้าน",19250,"ข้อบัญญัติงบประมาณประจำปี 2568","สิ้นสุดระยะสัญญา","วิธีเฉพาะเจาะจง",19250,19250,"ห้างหุ้นส่วนจำกัดเที่ยงตรงวิทยุ","67109270695"]
[47,2568,"องค์การบริหารส่วนตำบลกู่กาสิงห์","เกษตรวิสัย","ร้อยเอ็ด","มหาดไทย","องค์กรปกครองส่วนท้องถิ่น","โครงการจ้างซ่อมบำรุงรถกู้ชีพกู้ภัย ฯ",16450,"ข้อบัญญัติงบประมาณประจำปี 2568","สิ้นสุดระยะสัญญา","วิธีเฉพาะเจาะจง",{"$f":"+Table13[[#This Row],[วงเงินงบประมาณที่ได้รับจัดสรร (บาท)]]","v":16450},{"$f":"+Table13[[#This Row],[ราคากลาง (บาท)]]","v":16450},"ร้านยอดนิยม","67129089297"]
[48,2568,"องค์การบริหารส่วนตำบลกู่กาสิงห์","เกษตรวิสัย","ร้อยเอ็ด","มหาดไทย","องค์กรปกครองส่วนท้องถิ่น","โครงการจัดซื้อวัสดุงานบ้านงานครัว",15000,"ข้อบัญญัติงบประมาณประจำปี 2568","สิ้นสุดระยะสัญญา","วิธีเฉพาะเจาะจง",{"$f":"+Table13[[#This Row],[วงเงินงบประมาณที่ได้รับจัดสรร (บาท)]]","v":15000},{"$f":"+Table13[[#This Row],[ราคากลาง (บาท)]]","v":15000},"ร้านไพศาลพาณิชย์","68039003227"]
[49,2568,"องค์การบริหารส่วนตำบลกู่กาสิงห์","เกษตรวิสัย","ร้อยเอ็ด","มหาดไทย","องค์กรปกครองส่วนท้องถิ่น","โครงการจัดซื้อวัสดุก่อสร้าง ",14750,"ข้อบัญญัติงบประมาณประจำปี 2568","สิ้นสุดระยะสัญญา","วิธีเฉพาะเจาะจง",{"$f":"+Table13[[#This Row],[วงเงินงบประมาณที่ได้รับจัดสรร (บาท)]]","v":14750},{"$f":"+Table13[[#This Row],[ราคากลาง (บาท)]]","v":14750},"ห้างหุ้นส่วนจำกัดเที่ยงตรงวิทยุ","67119214824"]
[50,2568,"องค์การบริหารส่วนตำบลกู่กาสิงห์","เกษตรวิสัย","ร้อยเอ็ด","มหาดไทย","องค์กรปกครองส่วนท้องถิ่น","โครงการจัดซื้อวัสดุไฟฟ้า",14515,"ข้อบัญญัติงบประมาณประจำปี 2568","สิ้นสุดระยะสัญญา","วิธีเฉพาะเจาะจง",{"$f":"+Table13[[#This Row],[วงเงินงบประมาณที่ได้รับจัดสรร (บาท)]]","v":14515},{"$f":"+Table13[[#This Row],[ราคากลาง (บาท)]]","v":14515},"ห้างหุ้นส่วนจำกัดเที่ยงตรงวิทยุ","68029443799"]
[51,2568,"องค์การบริหารส่วนตำบลกู่กาสิงห์","เกษตรวิสัย","ร้อยเอ็ด","มหาดไทย","องค์กรปกครองส่วนท้องถิ่น","โครงการจัดซื้อวัสดุป้องกัน ฯ",14000,"ข้อบัญญัติงบประมาณประจำปี 2568","สิ้นสุดระยะสัญญา","วิธีเฉพาะเจาะจง",{"$f":"+Table13[[#This Row],[วงเงินงบประมาณที่ได้รับจัดสรร (บาท)]]","v":14000},{"$f":"+Table13[[#This Row],[ราคากลาง (บาท)]]","v":14000},"ร้านซัพพลายเทรดดิ้ง","68029532543"]
[52,2568,"องค์การบริหารส่วนตำบลกู่กาสิงห์","เกษตรวิสัย","ร้อยเอ็ด","มหาดไทย","องค์กรปกครองส่วนท้องถิ่น","โครงการจัดซื้อพาทิชั่น ฯ",12000,"ข้อบัญญัติงบประมาณประจำปี 2568","สิ้นสุดระยะสัญญา","วิธีเฉพาะเจาะจง",{"$f":"+Table13[[#This Row],[วงเงินงบประมาณที่ได้รับจัดสรร (บาท)]]","v":12000},{"$f":"+Table13[[#This Row],[ราคากลาง (บาท)]]","v":12000},"ร้าน ส.สวัสดีผ้าม่าน","68029167339"]
[53,2568,"องค์การบริหารส่วนตำบลกู่กาสิงห์","เกษตรวิสัย","ร้อยเอ็ด","มหาดไทย","องค์กรปกครองส่วนท้องถิ่น","โครงการจัดซื้อวัสดุสำนักงานและวัสดุงานบ้านงานครัว",11280,"ข้อบัญญัติงบประมาณประจำปี 2568","สิ้นสุดระยะสัญญา","วิธีเฉพาะเจาะจง",{"$f":"+Table13[[#This Row],[วงเงินงบประมาณที่ได้รับจัดสรร (บาท)]]","v":11280},{"$f":"+Table13[[#This Row],[ราคากลาง (บาท)]]","v":11280},"ห้างหุ้นส่วนจำกัดมงคลชัยวิทยาภัณฑ์","67119078109"]
[54,2568,"องค์การบริหารส่วนตำบลกู่กาสิงห์","เกษตรวิสัย","ร้อยเอ็ด","มหาดไทย","องค์กรปกครองส่วนท้องถิ่น","โครงการจัดซื้อวัสดุสำนักงาน",11116,"ข้อบัญญัติงบประมาณประจำปี 2568","สิ้นสุดระยะสัญญา","วิธีเฉพาะเจาะจง",{"$f":"+Table13[[#This Row],[วงเงินงบประมาณที่ได้รับจัดสรร (บาท)]]","v":11116},{"$f":"+Table13[[#This Row],[ราคากลาง (บาท)]]","v":11116},"ห้างหุ้นส่วนจำกัดมงคลชัยวิทยาภัณฑ์","67129154628"]
[55,2568,"องค์การบริหารส่วนตำบลกู่กาสิงห์","เกษตรวิสัย","ร้อยเอ็ด","มหาดไทย","องค์กรปกครองส่วนท้องถิ่น","โครงการจัดซื้อมาตรวัดน้ำประปาหมู่บ้าน",9900,"ข้อบัญญัติงบประมาณประจำปี 2568","สิ้นสุดระยะสัญญา","วิธีเฉพาะเจาะจง",{"$f":"+Table13[[#This Row],[วงเงินงบประมาณที่ได้รับจัดสรร (บาท)]]","v":9900},{"$f":"+Table13[[#This Row],[ราคากลาง (บาท)]]","v":9900},"ห้างหุ้นส่วนจำกัดเที่ยงตรงวิทยุ","67129241510"]
[56,2568,"องค์การบริหารส่วนตำบลกู่กาสิงห์","เกษตรวิสัย","ร้อยเอ็ด","มหาดไทย","องค์กรปกครองส่วนท้องถิ่น","โครงการจัดซื้อวัสดุสำนักงาน",9850,"ข้อบัญญัติงบประมาณประจำปี 2568","สิ้นสุดระยะสัญญา","วิธีเฉพาะเจาะจง",{"$f":"+Table13[[#This Row],[วงเงินงบประมาณที่ได้รับจัดสรร (บาท)]]","v":9850},{"$f":"+Table13[[#This Row],[ราคากลาง (บาท)]]","v":9850},"บริษัท แอดไวซ์เกษตร จำกัด","67129154628"]
[57,2568,"องค์การบริหารส่วนตำบลกู่กาสิงห์","เกษตรวิสัย","ร้อยเอ็ด","มหาดไทย","องค์กรปกครองส่วนท้องถิ่น","โครงการจัดซื้อวัสดุก่อสร้าง ",8250,"ข้อบัญญัติงบประมาณประจำปี 2568","สิ้นสุดระยะสัญญา","วิธีเฉพาะเจาะจง",{"$f":"+Table13[[#This Row],[วงเงินงบประมาณที่ได้รับจัดสรร (บาท)]]","v":8250},{"$f":"+Table13[[#This Row],[ราคากลาง (บาท)]]","v":8250},"ห้างหุ้นส่วนจำกัดเที่ยงตรงวิทยุ","68039003129"]
[58,2568,"องค์การบริหารส่วนตำบลกู่กาสิงห์","เกษตรวิสัย","ร้อยเอ็ด","มหาดไทย","องค์กรปกครองส่วนท้องถิ่น","โครงการจัดซื้อวัสดุคอมพิวเตอร์",7850,"ข้อบัญญัติงบประมาณประจำปี 2568","สิ้นสุดระยะสัญญา","วิธีเฉพาะเจาะจง",{"$f":"+Table13[[#This Row],[วงเงินงบประมาณที่ได้รับจัดสรร (บาท)]]","v":7850},{"$f":"+Table13[[#This Row],[ราคากลาง (บาท)]]","v":7850},"บริษัท แอดไวซ์เกษตร จำกัด","67119077542"]
[59,2568,"องค์การบริหารส่วนตำบลกู่กาสิงห์","เกษตรวิสัย","ร้อยเอ็ด","มหาดไทย","องค์กรปกครองส่วนท้องถิ่น","โครงการจัดซื้อวัสดุสำนักงาน",6850,"ข้อบัญญัติงบประมาณประจำปี 2568","สิ้นสุดระยะสัญญา","วิธีเฉพาะเจาะจง",{"$f":"+Table13[[#This Row],[วงเงินงบประมาณที่ได้รับจัดสรร (บาท)]]","v":6850},{"$f":"+Table13[[#This Row],[ราคากลาง (บาท)]]","v":6850},"ห้างหุ้นส่วนจำกัดมงคลชัยวิทยาภัณฑ์","68019150931"]
[60,2568,"องค์การบริหารส่วนตำบลกู่กาสิงห์","เกษตรวิสัย","ร้อยเอ็ด","มหาดไทย","องค์กรปกครองส่วนท้องถิ่น","โครงการจัดซื้อวัสดุสำนักงาน",6730,"ข้อบัญญัติงบประมาณประจำปี 2569","สิ้นสุดระยะสัญญา","วิธีเฉพาะเจาะจง",6730,{"$f":"+Table13[[#This Row],[ราคากลาง (บาท)]]","v":6730},"ห้างหุ้นส่วนจำกัดมงคลชัยวิทยาภัณฑ์",68039153151]
[61,2568,"องค์การบริหารส่วนตำบลกู่กาสิงห์","เกษตรวิสัย","ร้อยเอ็ด","มหาดไทย","องค์กรปกครองส่วนท้องถิ่น","โครงการจัดซื้อวัสดุก่อสร้าง (ประปา)",6725,"ข้อบัญญัติงบประมาณประจำปี 2568","สิ้นสุดระยะสัญญา","วิธีเฉพาะเจาะจง",{"$f":"+Table13[[#This Row],[วงเงินงบประมาณที่ได้รับจัดสรร (บาท)]]","v":6725},{"$f":"+Table13[[#This Row],[ราคากลาง (บาท)]]","v":6725},"ห้างหุ้นส่วนจำกัดเที่ยงตรงวิทยุ","68039003324"]
[62,2568,"องค์การบริหารส่วนตำบลกู่กาสิงห์","เกษตรวิสัย","ร้อยเอ็ด","มหาดไทย","องค์กรปกครองส่วนท้องถิ่น","โครงการจัดซื้อวัสดุสำนักงาน",6200,"ข้อบัญญัติงบประมาณประจำปี 2568","สิ้นสุดระยะสัญญา","วิธีเฉพาะเจาะจง",{"$f":"+Table13[[#This Row],[วงเงินงบประมาณที่ได้รับจัดสรร (บาท)]]","v":6200},{"$f":"+Table13[[#This Row],[ราคากลาง (บาท)]]","v":6200},"บริษัท ทรัพย์กวีโอเอเซ็นเตอร์ จำกัด","67129330237"]
[63,2568,"องค์การบริหารส่วนตำบลกู่กาสิงห์","เกษตรวิสัย","ร้อยเอ็ด","มหาดไทย","องค์กรปกครองส่วนท้องถิ่น","โครงการจัดซื้อครุภัณฑ์งานบ้านงานครัว",6000,"ข้อบัญญัติงบประมาณประจำปี 2568","สิ้นสุดระยะสัญญา","วิธีเฉพาะเจาะจง",{"$f":"+Table13[[#This Row],[วงเงินงบประมาณที่ได้รับจัดสรร (บาท)]]","v":6000},{"$f":"+Table13[[#This Row],[ราคากลาง (บาท)]]","v":6000},"ห้างหุ้นส่วนจำกัดเที่ยงตรงวิทยุ","67129385394"]
[64,2568,"องค์การบริหารส่วนตำบลกู่กาสิงห์","เกษตรวิสัย","ร้อยเอ็ด","มหาดไทย","องค์กรปกครองส่วนท้องถิ่น","โครงการจัดซื้อวัสดุสำนักงาน",5830,"ข้อบัญญัติงบประมาณประจำปี 2568","สิ้นสุดระยะสัญญา","วิธีเฉพาะเจาะจง",{"$f":"+Table13[[#This Row],[วงเงินงบประมาณที่ได้รับจัดสรร (บาท)]]","v":5830},{"$f":"+Table13[[#This Row],[ราคากลาง (บาท)]]","v":5830},"ห้างหุ้นส่วนจำกัดมงคลชัยวิทยาภัณฑ์","67119078063"]
[65,2568,"องค์การบริหารส่วนตำบลกู่กาสิงห์","เกษตรวิสัย","ร้อยเอ็ด","มหาดไทย","องค์กรปกครองส่วนท้องถิ่น","โครงการจ้างพิมพ์ป้ายไวนิว ฯ",5586,"ข้อบัญญัติงบประมาณประจำปี 2568","สิ้นสุดระยะสัญญา","วิธีเฉพาะเจาะจง",{"$f":"+Table13[[#This Row],[วงเงินงบประมาณที่ได้รับจัดสรร (บาท)]]","v":5586},{"$f":"+Table13[[#This Row],[ราคากลาง (บาท)]]","v":5586},"ร้านเอ็กซิทอินเตอร์เนต","67129336189"]
[66,2568,"องค์การบริหารส่วนตำบลกู่กาสิงห์","เกษตรวิสัย","ร้อยเอ็ด","มหาดไทย","องค์กรปกครองส่วนท้องถิ่น","โครงการจัดซื้อวัสดุสำนักงาน",5280,"ข้อบัญญัติงบประมาณประจำปี 2568","สิ้นสุดระยะสัญญา","วิธีเฉพาะเจาะจง",{"$f":"+Table13[[#This Row],[วงเงินงบประมาณที่ได้รับจัดสรร (บาท)]]","v":5280},{"$f":"+Table13[[#This Row],[ราคากลาง (บาท)]]","v":5280},"บริษัท ทรัพย์กวีโอเอเซ็นเตอร์ จำกัด","67129154628"]
[67,2568,"องค์การบริหารส่วนตำบลกู่กาสิงห์","เกษตรวิสัย","ร้อยเอ็ด","มหาดไทย","องค์กรปกครองส่วนท้องถิ่น","โครงการจัดซื้อน้ำดื่ม",4950,"ข้อบัญญัติงบประมาณประจำปี 2568","สิ้นสุดระยะสัญญา","วิธีเฉพาะเจาะจง",{"$f":"+Table13[[#This Row],[วงเงินงบประมาณที่ได้รับจัดสรร (บาท)]]","v":4950},{"$f":"+Table13[[#This Row],[ราคากลาง (บาท)]]","v":4950},"ร้านธนากรช๊อป","67129089101"]
[68,2568,"องค์การบริหารส่วนตำบลกู่กาสิงห์","เกษตรวิสัย","ร้อยเอ็ด","มหาดไทย","องค์กรปกครองส่วนท้องถิ่น","โครงการจัดซื้อวัสดุก่อสร้าง ",4900,"ข้อบัญญัติงบประมาณประจำปี 2568","สิ้นสุดระยะสัญญา","วิธีเฉพาะเจาะจง",4900,4900,"ห้างหุ้นส่วนจำกัดเที่ยงตรงวิทยุ","67109076573"]
[69,2568,"องค์การบริหารส่วนตำบลกู่กาสิงห์","เกษตรวิสัย","ร้อยเอ็ด","มหาดไทย","องค์กรปกครองส่วนท้องถิ่น","โครงการจัดซื้อวัสดุไฟฟ้า",4020,"ข้อบัญญัติงบประมาณประจำปี 2568","สิ้นสุดระยะสัญญา","วิธีเฉพาะเจาะจง",4202,4901,"ห้างหุ้นส่วนจำกัดเที่ยงตรงวิทยุ",68039181759]
[70,2568,"องค์การบริหารส่วนตำบลกู่กาสิงห์","เกษตรวิสัย","ร้อยเอ็ด","มหาดไทย","องค์กรปกครองส่วนท้องถิ่น","โครงการจัดซื้อวัสดุคอมพิวเตอร์",4050,"ข้อบัญญัติงบประมาณประจำปี 2568","สิ้นสุดระยะสัญญา","วิธีเฉพาะเจาะจง",{"$f":"+Table13[[#This Row],[วงเงินงบประมาณที่ได้รับจัดสรร (บาท)]]","v":4050},{"$f":"+Table13[[#This Row],[ราคากลาง (บาท)]]","v":4050},"ร้านบีแอลคอม","68019225944"]
[71,2568,"องค์การบริหารส่วนตำบลกู่กาสิงห์","เกษตรวิสัย","ร้อยเอ็ด","มหาดไทย","องค์กรปกครองส่วนท้องถิ่น","โครงการจัดซื้อวัสดุงานบ้านงานครัว",4040,"ข้อบัญญัติงบประมาณประจำปี 2568","สิ้นสุดระยะสัญญา","วิธีเฉพาะเจาะจง",{"$f":"+Table13[[#This Row],[วงเงินงบประมาณที่ได้รับจัดสรร (บาท)]]","v":4040},{"$f":"+Table13[[#This Row],[ราคากลาง (บาท)]]","v":4040},"ห้างหุ้นส่วนจำกัดมงคลชัยวิทยาภัณฑ์","67119565898"]
[72,2568,"องค์การบริหารส่วนตำบลกู่กาสิงห์","เกษตรวิสัย","ร้อยเอ็ด","มหาดไทย","องค์กรปกครองส่วนท้องถิ่น","โครงการจัดซื้อวัสดุงานบ้านงานครัว",4020,"ข้อบัญญัติงบประมาณประจำปี 2568","สิ้นสุดระยะสัญญา","วิธีเฉพาะเจาะจง",{"$f":"+Table13[[#This Row],[วงเงินงบประมาณที่ได้รับจัดสรร (บาท)]]","v":4020},{"$f":"+Table13[[#This Row],[ราคากลาง (บาท)]]","v":4020},"ห้างหุ้นส่วนจำกัดมงคลชัยวิทยาภัณฑ์","67129089215"]
[73,2568,"องค์การบริหารส่วนตำบลกู่กาสิงห์","เกษตรวิสัย","ร้อยเอ็ด","มหาดไทย","องค์กรปกครองส่วนท้องถิ่น","โครงการจัดซื้อวัสดุสำนักงาน",3800,"ข้อบัญญัติงบประมาณประจำปี 2568","สิ้นสุดระยะสัญญา","วิธีเฉพาะเจาะจง",{"$f":"+Table13[[#This Row],[วงเงินงบประมาณที่ได้รับจัดสรร (บาท)]]","v":3800},{"$f":"+Table13[[#This Row],[ราคากลาง (บาท)]]","v":3800},"ห้างหุ้นส่วนจำกัดมงคลชัยวิทยาภัณฑ์","68019209124"]
[74,2568,"องค์การบริหารส่วนตำบลกู่กาสิงห์","เกษตรวิสัย","ร้อยเอ็ด","มหาดไทย","องค์กรปกครองส่วนท้องถิ่น","โครงการจัดซื้อวัสดุงานบ้านงานครัว",3480,"ข้อบัญญัติงบประมาณประจำปี 2568","สิ้นสุดระยะสัญญา","วิธีเฉพาะเจาะจง",{"$f":"+Table13[[#This Row],[วงเงินงบประมาณที่ได้รับจัดสรร (บาท)]]","v":3480},{"$f":"+Table13[[#This Row],[ราคากลาง (บาท)]]","v":3480},"ห้างหุ้นส่วนจำกัดมงคลชัยวิทยาภัณฑ์","67119078142"]
[75,2568,"องค์การบริหารส่วนตำบลกู่กาสิงห์","เกษตรวิสัย","ร้อยเอ็ด","มหาดไทย","องค์กรปกครองส่วนท้องถิ่น","โครงการจัดซื้อวัสดุงานบ้านงานครัว",3470,"ข้อบัญญัติงบประมาณประจำปี 2568","สิ้นสุดระยะสัญญา","วิธีเฉพาะเจาะจง",{"$f":"+Table13[[#This Row],[วงเงินงบประมาณที่ได้รับจัดสรร (บาท)]]","v":3470},{"$f":"+Table13[[#This Row],[ราคากลาง (บาท)]]","v":3470},"ห้างหุ้นส่วนจำกัดมงคลชัยวิทยาภัณฑ์","67129366346"]
[76,2568,"องค์การบริหารส่วนตำบลกู่กาสิงห์","เกษตรวิสัย","ร้อยเอ็ด","มหาดไทย","องค์กรปกครองส่วนท้องถิ่น","โครงการจัดซื้อวัสดุสำนักงาน",3360,"ข้อบัญญัติงบประมาณประจำปี 2568","สิ้นสุดระยะสัญญา","วิธีเฉพาะเจาะจง",3360,{"$f":"+Table13[[#This Row],[ราคากลาง (บาท)]]","v":3360},"บริษัททรัพย์กวีโอเอเซ็นเตอร์ จำกัด",68039181696]
[77,2568,"องค์การบริหารส่วนตำบลกู่กาสิงห์","เกษตรวิสัย","ร้อยเอ็ด","มหาดไทย","องค์กรปกครองส่วนท้องถิ่น","โครงการจัดซื้อน้ำดื่ม",3460,"ข้อบัญญัติงบประมาณประจำปี 2568","สิ้นสุดระยะสัญญา","วิธีเฉพาะเจาะจง",{"$f":"+Table13[[#This Row],[วงเงินงบประมาณที่ได้รับจัดสรร (บาท)]]","v":3460},{"$f":"+Table13[[#This Row],[ราคากลาง (บาท)]]","v":3460},"นายบุญฑริก จำปาหอม","67129338294"]
[78,2568,"องค์การบริหารส่วนตำบลกู่กาสิงห์","เกษตรวิสัย","ร้อยเอ็ด","มหาดไทย","องค์กรปกครองส่วนท้องถิ่น","โครงการเช่าเต้นท์ \"โครงการลดอุบัติเหตุประจำปี 2568\"",3000,"ข้อบัญญัติงบประมาณประจำปี 2568","สิ้นสุดระยะสัญญา","วิธีเฉพาะเจาะจง",{"$f":"+Table13[[#This Row],[วงเงินงบประมาณที่ได้รับจัดสรร (บาท)]]","v":3000},{"$f":"+Table13[[#This Row],[ราคากลาง (บาท)]]","v":3000},"นางแหวน ลิไสย์","67129351169"]
[79,2568,"องค์การบริหารส่วนตำบลกู่กาสิงห์","เกษตรวิสัย","ร้อยเอ็ด","มหาดไทย","องค์กรปกครองส่วนท้องถิ่น","โครงการจัดซื้อวัสดุคอมพิวเตอร์",2940,"ข้อบัญญัติงบประมาณประจำปี 2568","สิ้นสุดระยะสัญญา","วิธีเฉพาะเจาะจง",{"$f":"+Table13[[#This Row],[วงเงินงบประมาณที่ได้รับจัดสรร (บาท)]]","v":2940},{"$f":"+Table13[[#This Row],[ราคากลาง (บาท)]]","v":2940},"บริษัท ทรัพย์กวีโอเอเซ็นเตอร์ จำกัด","67119565898"]
[80,2568,"องค์การบริหารส่วนตำบลกู่กาสิงห์","เกษตรวิสัย","ร้อยเอ็ด","มหาดไทย","องค์กรปกครองส่วนท้องถิ่น","โครงการจัดซื้อน้ำดื่ม",2700,"ข้อบัญญัติงบประมาณประจำปี 2568","สิ้นสุดระยะสัญญา","วิธีเฉพาะเจาะจง",{"$f":"+Table13[[#This Row],[วงเงินงบประมาณที่ได้รับจัดสรร (บาท)]]","v":2700},{"$f":"+Table13[[#This Row],[ราคากลาง (บาท)]]","v":2700},"นายบุญฑริก จำปาหอม","67129338294"]
[81,2568,"องค์การบริหารส่วนตำบลกู่กาสิงห์","เกษตรวิสัย","ร้อยเอ็ด","มหาดไทย","องค์กรปกครองส่วนท้องถิ่น","โครงการจัดซื้อวัสดุสำนักงาน",2350,"ข้อบัญญัติงบประมาณประจำปี 2568","สิ้นสุดระยะสัญญา","วิธีเฉพาะเจาะจง",{"$f":"+Table13[[#This Row],[วงเงินงบประมาณที่ได้รับจัดสรร (บาท)]]","v":2350},{"$f":"+Table13[[#This Row],[ราคากลาง (บาท)]]","v":2350},"ห้างหุ้นส่วนจำกัดมงคลชัยวิทยาภัณฑ์","68019150161"]
[82,2568,"องค์การบริหารส่วนตำบลกู่กาสิงห์","เกษตรวิสัย","ร้อยเอ็ด","มหาดไทย","องค์กรปกครองส่วนท้องถิ่น","โครงการจ้างพิมพ์ป้ายไวนิว ฯ",2300,"ข้อบัญญัติงบประมาณประจำปี 2568","สิ้นสุดระยะสัญญา","วิธีเฉพาะเจาะจง",{"$f":"+Table13[[#This Row],[วงเงินงบประมาณที่ได้รับจัดสรร (บาท)]]","v":2300},{"$f":"+Table13[[#This Row],[ราคากลาง (บาท)]]","v":2300},"ร้านเอ็กซิทอินเตอร์เนต","67119214440"]
[83,2568,"องค์การบริหารส่วนตำบลกู่กาสิงห์","เกษตรวิสัย","ร้อยเอ็ด","มหาดไทย","องค์กรปกครองส่วนท้องถิ่น","โครงการจ้างซ่อมครุภัณฑ์คอมพิวเตอร์",2180,"ข้อบัญญัติงบประมาณประจำปี 2568","สิ้นสุดระยะสัญญา","วิธีเฉพาะเจาะจง",{"$f":"+Table13[[#This Row],[วงเงินงบประมาณที่ได้รับจัดสรร (บาท)]]","v":2180},{"$f":"+Table13[[#This Row],[ราคากลาง (บาท)]]","v":2180},"บริษัท แอดไวซ์เกษตร จำกัด","68019151977"]
[84,2568,"องค์การบริหารส่วนตำบลกู่กาสิงห์","เกษตรวิสัย","ร้อยเอ็ด","มหาดไทย","องค์กรปกครองส่วนท้องถิ่น","โครงการจัดซื้อวัสดุสำนักงาน",2001,"ข้อบัญญัติงบประมาณประจำปี 2568","สิ้นสุดระยะสัญญา","วิธีเฉพาะเจาะจง",2001,2001,"บริษัททรัพย์กวีโอเอเซ็นเตอร์ จำกัด",68039181619]
[85,2568,"องค์การบริหารส่วนตำบลกู่กาสิงห์","เกษตรวิสัย","ร้อยเอ็ด","มหาดไทย","องค์กรปกครองส่วนท้องถิ่น","โครงการจัดซื้อว้สดุคอมพิวเตอร์",2000,"ข้อบัญญัติงบประมาณประจำปี 2568","สิ้นสุดระยะสัญญา","วิธีเฉพาะเจาะจง",2000,2000,"บริษัท แอดไวซ์เกษตร จำกัด","67109076500"]
[86,2568,"องค์การบริหารส่วนตำบลกู่กาสิงห์","เกษตรวิสัย","ร้อยเอ็ด","มหาดไทย","องค์กรปกครองส่วนท้องถิ่น","โครงการจัดซื้อวัสดุคอมพิวเตอร์",1700,"ข้อบัญญัติงบประมาณประจำปี 2568","สิ้นสุดระยะสัญญา","วิธีเฉพาะเจาะจง",{"$f":"+Table13[[#This Row],[วงเงินงบประมาณที่ได้รับจัดสรร (บาท)]]","v":1700},{"$f":"+Table13[[#This Row],[ราคากลาง (บาท)]]","v":1700},"ร้านบีแอลคอม","68019139197"]
[87,2568,"องค์การบริหารส่วนตำบลกู่กาสิงห์","เกษตรวิสัย","ร้อยเอ็ด","มหาดไทย","องค์กรปกครองส่วนท้องถิ่น","โครงการจ้างพิมพ์ป้ายไวนิว ฯ",1579,"ข้อบัญญัติงบประมาณประจำปี 2568","สิ้นสุดระยะสัญญา","วิธีเฉพาะเจาะจง",{"$f":"+Table13[[#This Row],[วงเงินงบประมาณที่ได้รับจัดสรร (บาท)]]","v":1579},{"$f":"+Table13[[#This Row],[ราคากลาง (บาท)]]","v":1579},"ร้านเอ็กซิทอินเตอร์เนต","67129496983"]
[88,2568,"องค์การบริหารส่วนตำบลกู่กาสิงห์","เกษตรวิสัย","ร้อยเอ็ด","มหาดไทย","องค์กรปกครองส่วนท้องถิ่น","โครงการจัดซื้อวัสดุคอมพิวเตอร์",1470,"ข้อบัญญัติงบประมาณประจำปี 2568","สิ้นสุดระยะสัญญา","วิธีเฉพาะเจาะจง",{"$f":"+Table13[[#This Row],[วงเงินงบประมาณที่ได้รับจัดสรร (บาท)]]","v":1470},{"$f":"+Table13[[#This Row],[ราคากลาง (บาท)]]","v":1470},"บริษัท ทรัพย์กวีโอเอเซ็นเตอร์ จำกัด","67119077268"]
[89,2568,"องค์การบริหารส่วนตำบลกู่กาสิงห์","เกษตรวิสัย","ร้อยเอ็ด","มหาดไทย","องค์กรปกครองส่วนท้องถิ่น","โครงการจัดซื้อวัสดุคอมพิวเตอร์",1470,"ข้อบัญญัติงบประมาณประจำปี 2568","สิ้นสุดระยะสัญญา","วิธีเฉพาะเจาะจง",{"$f":"+Table13[[#This Row],[วงเงินงบประมาณที่ได้รับจัดสรร (บาท)]]","v":1470},{"$f":"+Table13[[#This Row],[ราคากลาง (บาท)]]","v":1470},"บริษัท ทรัพย์กวีโอเอเซ็นเตอร์ จำกัด","67129089339"]
[90,2568,"องค์การบริหารส่วนตำบลกู่กาสิงห์","เกษตรวิสัย","ร้อยเอ็ด","มหาดไทย","องค์กรปกครองส่วนท้องถิ่น","โครงการจัดซื้อน้ำดื่ม",1400,"ข้อบัญญัติงบประมาณประจำปี 2568","สิ้นสุดระยะสัญญา","วิธีเฉพาะเจาะจง",{"$f":"+Table13[[#This Row],[วงเงินงบประมาณที่ได้รับจัดสรร (บาท)]]","v":1400},{"$f":"+Table13[[#This Row],[ราคากลาง (บาท)]]","v":1400},"นายนรินท์ ศรีนนท์","671193ฃ6826"]
[91,2568,"องค์การบริหารส่วนตำบลกู่กาสิงห์","เกษตรวิสัย","ร้อยเอ็ด","มหาดไทย","องค์กรปกครองส่วนท้องถิ่น","โครงการจัดซื้อวัสดุงานบ้านงานครัว",1330,"ข้อบัญญัติงบประมาณประจำปี 2568","สิ้นสุดระยะสัญญา","วิธีเฉพาะเจาะจง",1330,{"$f":"+Table13[[#This Row],[ราคากลาง (บาท)]]","v":1330},"ห้างหุ้นส่วนจำกัดมงคลชัยวิทยาภัณฑ์",68039153106]
[92,2568,"องค์การบริหารส่วนตำบลกู่กาสิงห์","เกษตรวิสัย","ร้อยเอ็ด","มหาดไทย","องค์กรปกครองส่วนท้องถิ่น","โครงการจ้างพิมพ์ป้ายไวนิว ฯ",1200,"ข้อบัญญัติงบประมาณประจำปี 2568","สิ้นสุดระยะสัญญา","วิธีเฉพาะเจาะจง",{"$f":"+Table13[[#This Row],[วงเงินงบประมาณที่ได้รับจัดสรร (บาท)]]","v":1200},{"$f":"+Table13[[#This Row],[ราคากลาง (บาท)]]","v":1200},"ร้านเอ็กซิทอินเตอร์เนต",68039152760]
[93,2568,"องค์การบริหารส่วนตำบลกู่กาสิงห์","เกษตรวิสัย","ร้อยเอ็ด","มหาดไทย","องค์กรปกครองส่วนท้องถิ่น","โครงการจัดซื้อวัสดุคอมพิวเตอร์",1100,"ข้อบัญญัติงบประมาณประจำปี 2568","สิ้นสุดระยะสัญญา","วิธีเฉพาะเจาะจง",{"$f":"+Table13[[#This Row],[วงเงินงบประมาณที่ได้รับจัดสรร (บาท)]]","v":1100},{"$f":"+Table13[[#This Row],[ราคากลาง (บาท)]]","v":1100},"บริษัท แอดไวซ์เกษตร จำกัด","67119565898"]
[94,2568,"องค์การบริหารส่วนตำบลกู่กาสิงห์","เกษตรวิสัย","ร้อยเอ็ด","มหาดไทย","องค์กรปกครองส่วนท้องถิ่น","โครงการจัดซื้อวัสดุงานบ้านงานครัว",1000,"ข้อบัญญัติงบประมาณประจำปี 2568","สิ้นสุดระยะสัญญา","วิธีเฉพาะเจาะจง",{"$f":"+Table13[[#This Row],[วงเงินงบประมาณที่ได้รับจัดสรร (บาท)]]","v":1000},{"$f":"+Table13[[#This Row],[ราคากลาง (บาท)]]","v":1000},"ห้างหุ้นส่วนจำกัดเที่ยงตรงวิทยุ","67129373624"]
[95,2568,"องค์การบริหารส่วนตำบลกู่กาสิงห์","เกษตรวิสัย","ร้อยเอ็ด","มหาดไทย","องค์กรปกครองส่วนท้องถิ่น","โครงการจัดซื้อวัสดุคอมพิวเตอร์",800,"ข้อบัญญัติงบประมาณประจำปี 2568","สิ้นสุดระยะสัญญา","วิธีเฉพาะเจาะจง",800,800,"ห้างหุ้นส่วนจำกัดมงคลชัยวิทยาภัณฑ์","67109234503"]
[96,2568,"องค์การบริหารส่วนตำบลกู่กาสิงห์","เกษตรวิสัย","ร้อยเอ็ด","มหาดไทย","องค์กรปกครองส่วนท้องถิ่น","โครงการจัดซื้อวัสดุคอมพิวเตอร์",800,"ข้อบัญญัติงบประมาณประจำปี 2568","สิ้นสุดระยะสัญญา","วิธีเฉพาะเจาะจง",{"$f":"+Table13[[#This Row],[วงเงินงบประมาณที่ได้รับจัดสรร (บาท)]]","v":800},{"$f":"+Table13[[#This Row],[ราคากลาง (บาท)]]","v":800},"บริษัท แอดไวซ์เกษตร จำกัด","67129088890"]
[97,2568,"องค์การบริหารส่วนตำบลกู่กาสิงห์","เกษตรวิสัย","ร้อยเอ็ด","มหาดไทย","องค์กรปกครองส่วนท้องถิ่น","โครงการจัดซื้อน้ำดื่ม",700,"ข้อบัญญัติงบประมาณประจำปี 2568","สิ้นสุดระยะสัญญา","วิธีเฉพาะเจาะจง",{"$f":"+Table13[[#This Row],[วงเงินงบประมาณที่ได้รับจัดสรร (บาท)]]","v":700},{"$f":"+Table13[[#This Row],[ราคากลาง (บาท)]]","v":700},"นายนรินท์ ศรีนนท์","67129210564"]
[98,2568,"องค์การบริหารส่วนตำบลกู่กาสิงห์","เกษตรวิสัย","ร้อยเอ็ด","มหาดไทย","องค์กรปกครองส่วนท้องถิ่น","โครงการจ้างพิมพ์ป้ายไวนิว ฯ",500,"ข้อบัญญัติงบประมาณประจำปี 2568","สิ้นสุดระยะสัญญา","วิธีเฉพาะเจาะจง",{"$f":"+Table13[[#This Row],[วงเงินงบประมาณที่ได้รับจัดสรร (บาท)]]","v":500},{"$f":"+Table13[[#This Row],[ราคากลาง (บาท)]]","v":500},"ร้านเอ็กซิทอินเตอร์เนต","68029149820"]
[99,2568,"องค์การบริหารส่วนตำบลกู่กาสิงห์","เกษตรวิสัย","ร้อยเอ็ด","มหาดไทย","องค์กรปกครองส่วนท้องถิ่น","โครการซ่อมแซมครุภัณฑ์คอมพิวเตอร์",450,"ข้อบัญญัติงบประมาณประจำปี 2568","สิ้นสุดระยะสัญญา","วิธีเฉพาะเจาะจง",{"$f":"+Table13[[#This Row],[วงเงินงบประมาณที่ได้รับจัดสรร (บาท)]]","v":450},{"$f":"+Table13[[#This Row],[ราคากลาง (บาท)]]","v":450},"บริษัท แอดไวซ์เกษตร จำกัด","67129393329"]
[100,2568,"องค์การบริหารส่วนตำบลกู่กาสิงห์","เกษตรวิสัย","ร้อยเอ็ด","มหาดไทย","องค์กรปกครองส่วนท้องถิ่น","โครงการจัดซื้อวัสดุสำนักงาน",180,"ข้อบัญญัติงบประมาณประจำปี 2568","สิ้นสุดระยะสัญญา","วิธีเฉพาะเจาะจง",{"$f":"+Table13[[#This Row],[วงเงินงบประมาณที่ได้รับจัดสรร (บาท)]]","v":180},{"$f":"+Table13[[#This Row],[ราคากลาง (บาท)]]","v":180},"ห้างหุ้นส่วนจำกัดมงคลชัยวิทยาภัณฑ์","67129089165"]
[]
[]
[]
[null,null,null,null,null,null,null,null,null,"ลำดับที่ 1 - 12    งบลงทุนขององค์การบริหารส่วนตำบลกู่กาสิงห์"]
[null,null,null,null,null,null,null,null,null,"ลำดับที่ 13 - 14  เงินอุดหนุนเฉพาะกิจประจำปีงบประมาณ พ.ศ. 2568ขององค์การบริหารส่วนตำบลกู่กาสิงห์"]
[null,null,null,null,null,null,null,null,null,"ลำดับที่ 15-20    เงินกู้จากกองทุนพัฒนาเมือง (ธนาคารออมสิน)"]
[null,null,null,null,null,null,null,null,null,"ลำดับที่ 21-100   งบอบต."]